{"text_format":"1","workbook":"xlsx","n_sheets":5,"sheets":["Outputs Monthly","DownloadBudgetData (1)","Timeliness Quarterly","CAP Count Summary","Action Plan Summary"],"not_rendered":{"charts":0,"images":0,"macros":0,"external_links":0,"defined_names":4,"comments":0,"pivot_tables":0},"unopened":[],"bounds":{"document_bytes":16777216,"sheet_cells":100000,"rows_first":2000,"rows_last":500,"rows_between":2000,"halvings":0,"cell_chars":16384,"cell_head_chars":4096},"cells_cut":0,"cells_raw":0,"read":"whole","date_system":"1900"}

{"sheet":"Outputs Monthly","index":0,"n_rows":143,"n_cols":702,"rows_kept":143,"cut":false,"hidden":false,"merged":[[7,13,7,15],[5,3,5,4],[6,3,6,4],[7,3,7,4],[7,6,7,7],[7,10,7,11],[3,13,5,15]]}
[null,null,null,null,null,null,null,null,null,null,null,null,null,"Annual Financial Receipts"]
[null,"County Fiscal Year 2014-15",null,null,null,null,null,null,null,null,null,null,null,"Total Number of Financial Receipts for the Year:","Projected","Actual"]
[null,"Outputs Monthly Report Form for CCOC",null,null,null,null,null,null,null,null,null,null,null,null,{"$f":"LOOKUP(D8,'DownloadBudgetData (1)'!B2:B68,'DownloadBudgetData (1)'!AG2:AG68)","v":453519}]
[null,null,null,null,null,null,null,null,null,null,null,null,null,"Financial Receipts are totaled for the full fiscal year and entered here annually. This annual total is to be reported on the September submission."]
[]
[null,null,"Report for the Month of: ","Jun"]
[null,null,"Version #: ",1]
[null,null,"County: ","Brevard",null,"Contact:","Michelle Levar",null,null,"Telephone:","321-633-7782",null,"E-mail:","michelle.levar@brevardclerk.us"]
[]
[]
[null,null,null,null,null,"Criminal",null,null,null,null,null,null,"Civil"]
[null,null,null,"Circuit","County","Juvenile Delinquency","Traffic","Total",null,"Circuit","County","Traffic","Probate","Family","Juvenile Dependency","Total",null,"Grand Total"]
[null,"Projections"]
[null,null,"Cases/Defendants",{"$f":"LOOKUP(D8,'DownloadBudgetData (1)'!B2:B68,'DownloadBudgetData (1)'!C2:C68)","v":9500},{"$f":"LOOKUP(D8,'DownloadBudgetData (1)'!B2:B68,'DownloadBudgetData (1)'!D2:D68)","v":10500},{"$f":"LOOKUP(D8,'DownloadBudgetData (1)'!B2:B68,'DownloadBudgetData (1)'!E2:E68)","v":1800},{"$f":"LOOKUP(D8,'DownloadBudgetData (1)'!B2:B68,'DownloadBudgetData (1)'!F2:F68)","v":9000},{"$f":"SUM(D14:G14)","v":30800},null,{"$f":"LOOKUP(D8,'DownloadBudgetData (1)'!B2:B68,'DownloadBudgetData (1)'!G2:G68)","v":6000},{"$f":"LOOKUP(D8,'DownloadBudgetData (1)'!B2:B68,'DownloadBudgetData (1)'!H2:H68)","v":7000},{"$f":"LOOKUP(D8,'DownloadBudgetData (1)'!B2:B68,'DownloadBudgetData (1)'!L2:L68)","v":59000},{"$f":"LOOKUP(D8,'DownloadBudgetData (1)'!B2:B68,'DownloadBudgetData (1)'!I2:I68)","v":4500},{"$f":"LOOKUP(D8,'DownloadBudgetData (1)'!B2:B68,'DownloadBudgetData (1)'!J2:J68)","v":7500},{"$f":"LOOKUP(D8,'DownloadBudgetData (1)'!B2:B68,'DownloadBudgetData (1)'!K2:K68)","v":300},{"$f":"SUM(J14:O14)","v":84300},null,{"$f":"H14+P14","v":115100}]
[null,null,"Reopenings",{"$f":"LOOKUP(D8,'DownloadBudgetData (1)'!B2:B68,'DownloadBudgetData (1)'!M2:M68)","v":7600},{"$f":"LOOKUP(D8,'DownloadBudgetData (1)'!B2:B68,'DownloadBudgetData (1)'!N2:N68)","v":2000},{"$f":"LOOKUP(D8,'DownloadBudgetData (1)'!B2:B68,'DownloadBudgetData (1)'!O2:O68)","v":2000},{"$f":"LOOKUP(D8,'DownloadBudgetData (1)'!B2:B68,'DownloadBudgetData (1)'!P2:P68)","v":2100},{"$f":"SUM(D15:G15)","v":13700},null,{"$f":"LOOKUP(D8,'DownloadBudgetData (1)'!B2:B68,'DownloadBudgetData (1)'!Q2:Q68)","v":5200},{"$f":"LOOKUP(D8,'DownloadBudgetData (1)'!B2:B68,'DownloadBudgetData (1)'!R2:R68)","v":3800},0,{"$f":"LOOKUP(D8,'DownloadBudgetData (1)'!B2:B68,'DownloadBudgetData (1)'!S2:S68)","v":1800},{"$f":"LOOKUP(D8,'DownloadBudgetData (1)'!B2:B68,'DownloadBudgetData (1)'!T2:T68)","v":7300},{"$f":"LOOKUP(D8,'DownloadBudgetData (1)'!B2:B68,'DownloadBudgetData (1)'!U2:U68)","v":450},{"$f":"SUM(J15:O15)","v":18550},null,{"$f":"H15+P15","v":32250}]
[null,null,"NOA's",{"$f":"LOOKUP(D8,'DownloadBudgetData (1)'!B2:B68,'DownloadBudgetData (1)'!W2:W68)","v":600},{"$f":"LOOKUP(D8,'DownloadBudgetData (1)'!B2:B68,'DownloadBudgetData (1)'!X2:X68)","v":25},{"$f":"LOOKUP(D8,'DownloadBudgetData (1)'!B2:B68,'DownloadBudgetData (1)'!Y2:Y68)","v":3},{"$f":"LOOKUP(D8,'DownloadBudgetData (1)'!B2:B68,'DownloadBudgetData (1)'!Z2:Z68)","v":25},{"$f":"SUM(D16:G16)","v":653},null,{"$f":"LOOKUP(D8,'DownloadBudgetData (1)'!B2:B68,'DownloadBudgetData (1)'!AA2:AA68)","v":80},{"$f":"LOOKUP(D8,'DownloadBudgetData (1)'!B2:B68,'DownloadBudgetData (1)'!AB2:AB68)","v":20},{"$f":"LOOKUP(D8,'DownloadBudgetData (1)'!B2:B68,'DownloadBudgetData (1)'!AF2:AF68)","v":15},{"$f":"LOOKUP(D8,'DownloadBudgetData (1)'!B2:B68,'DownloadBudgetData (1)'!AC2:AC68)","v":10},{"$f":"LOOKUP(D8,'DownloadBudgetData (1)'!B2:B68,'DownloadBudgetData (1)'!AD2:AD68)","v":35},{"$f":"LOOKUP(D8,'DownloadBudgetData (1)'!B2:B68,'DownloadBudgetData (1)'!AE2:AE68)","v":20},180,null,833]
[null,"October 2014"]
[null,null,"Cases/Defendants",635,880,216,553,{"$f":"SUM(D18:G18)","v":2284},null,365,736,4257,399,656,41,6454,null,8738]
[null,null,"Reopenings",781,220,252,147,{"$f":"SUM(D19:G19)","v":1400},null,640,273,0,194,550,60,1717,null,3117]
[null,null,"NOA's",44,1,0,4,{"$f":"SUM(D20:G20)","v":49},null,13,2,0,0,6,1,22,null,71,null,null,null,null,null,null,null,null,null,null,null,null,null,null,null,null,null,null,null,null,null,null,null,null,null,null,null,null,null,null,null,null,null,null,null,null,null,null,null,null,null,null,null,null,null,null,null,null,null,null,null,null,null,null,null,null,null,null,null,null,null,null,null,null,null,null,null,null,null,null,null,null,null,null,null,null,null,null,null,null,null,null,null,null,null,null,null,null,null,null,null,null,null,null,null,null,null,null,null,null,null,null,null,null,null,null,null,null,null,null,null,null,null,null,null,null,null,null,null,null,null,null,null,null,null,null,null,null,null,null,null,null,null,null,null,null,null,null,null,null,null,null,null,null,null,null,null,null,null,null,null,null,null,null,null,null,null,null,null,null,null,null,null,null,null,null,null,null,null,null,null,null,null,null,null,null,null,null,null,null,null,null,null,null,null,null,null,null,null,null,null,null,null,null,null,null,null,null,null,null,null,null,null,null,null,null,null,null,null,null,null,null,null,null,null,null,null,null,null,null,null,null,null,null,null,null,null,null,null,null,null,null,null,null,null,null,null,null,null,null,null,null,null,null,null,null,null,null,null,null,null,null,null,null,null,null,null,null,null,null,null,null,null,null,null,null,null,null,null,null,null,null,null,null,null,null,null,null,null,null,null,null,null,null,null,null,null,null,null,null,null,null,null,null,null,null,null,null,null,null,null,null,null,null,null,null,null,null,null,null,null,null,null,null,null,null,null,null,null,null,null,null,null,null,null,null,null,null,null,null,null,null,null,null,null,null,null,null,null,null,null,null,null,null,null,null,null,null,null,null,null,null,null,null,null,null,null,null,null,null,null,null,null,null,null,null,null,null,null,null,null,null,null,null,null,null,null,null,null,null,null,null,null,null,null,null,null,null,null,null,null,null,null,null,null,null,null,null,null,null,null,null,null,null,null,null,null,null,null,null,null,null,null,null,null,null,null,null,null,null,null,null,null,null,null,null,null,null,null,null,null,null,null,null,null,null,null,null,null,null,null,null,null,null,null,null,null,null,null,null,null,null,null,null,null,null,null,null,null,null,null,null,null,null,null,null,null,null,null,null,null,null,null,null,null,null,null,null,null,null,null,null,null,null,null,null,null,null,null,null,null,null,null,null,null,null,null,null,null,null,null,null,null,null,null,null,null,null,null,null,null,null,null,null,null,null,null,null,null,null,null,null,null,null,null,null,null,null,null,null,null,null,null,null,null,null,null,null,null,null,null,null,null,null,null,null,null,null,null,null,null,null,null,null,null,null,null,null,null,null,null,null,null,null,null,null,null,null,null,null,null,null,null,null,null,null,null,null,null,null,null,null,null,null,null,null,null,null,null,null,null,null,null,null,null,null,null,null,null,null,null,null,null,null,null,null,null,null,null,null,null,null,null,null,null,null,null,null,null,null,null,null,null,null,null,null,null,null,null,null,null,null,null,null,null,null,null,null,null,null,null,null,null,null,null,null,null,null,null,null,null,null,null,null,null,null,null,null,null,null,null,null,null,null,null,null,null,null,null,null,null,null,null,null,null,null,null,null,null,null,null,null,null,"PABS4.0"]
[null,"November 2014"]
[null,null,"Cases/Defendants",586,646,141,499,{"$f":"SUM(D22:G22)","v":1872},null,311,479,3572,265,440,33,5100,null,6972]
[null,null,"Reopenings",575,120,193,123,{"$f":"SUM(D23:G23)","v":1011},null,493,253,0,150,715,52,1663,null,2674]
[null,null,"NOA's",24,2,0,4,{"$f":"SUM(D24:G24)","v":30},null,6,1,0,0,1,3,11,null,41]
[null,"December 2014"]
[null,null,"Cases/Defendants",554,808,144,510,{"$f":"SUM(D26:G26)","v":2016},null,372,612,3851,358,498,29,5720,null,7736]
[null,null,"Reopenings",623,147,167,133,{"$f":"SUM(D27:G27)","v":1070},null,512,232,0,162,672,50,1628,null,2698]
[null,null,"NOA's",45,2,0,2,{"$f":"SUM(D28:G28)","v":49},null,10,0,0,0,2,0,12,null,61]
[null,"January 2015"]
[null,null,"Cases/Defendants",661,793,166,578,{"$f":"SUM(D30:G30)","v":2198},null,352,901,3289,390,528,56,5516,null,7714]
[null,null,"Reopenings",664,176,235,171,{"$f":"SUM(D31:G31)","v":1246},null,591,299,0,196,983,45,2114,null,3360]
[null,null,"NOA's",27,2,0,4,{"$f":"SUM(D32:G32)","v":33},null,12,0,1,0,0,0,13,null,46]
[null,"February 2015"]
[null,null,"Cases/Defendants",567,708,138,509,{"$f":"SUM(D34:G34)","v":1922},null,349,748,3932,401,504,38,5972,null,7894]
[null,null,"Reopenings",641,147,281,152,{"$f":"SUM(D35:G35)","v":1221},null,440,277,0,174,712,29,1632,null,2853]
[null,null,"NOA's",25,3,0,4,{"$f":"SUM(D36:G36)","v":32},null,4,1,0,1,0,7,13,null,45]
[null,"March 2015"]
[null,null,"Cases/Defendants",688,856,134,542,{"$f":"SUM(D38:G38)","v":2220},null,416,633,3995,477,669,51,6241,null,8461]
[null,null,"Reopenings",722,189,233,175,{"$f":"SUM(D39:G39)","v":1319},null,517,305,0,174,775,56,1827,null,3146]
[null,null,"NOA's",32,2,0,1,{"$f":"SUM(D40:G40)","v":35},null,7,1,1,2,3,1,15,null,50]
[null,"April 2015"]
[null,null,"Cases/Defendants",650,848,120,431,{"$f":"SUM(D42:G42)","v":2049},null,374,790,3632,459,640,27,5922,null,7971]
[null,null,"Reopenings",719,150,273,212,{"$f":"SUM(D43:G43)","v":1354},null,498,315,0,221,721,37,1792,null,3146]
[null,null,"NOA's",48,2,0,5,{"$f":"SUM(D44:G44)","v":55},null,4,0,0,0,4,0,8,null,63]
[null,"May 2015"]
[null,null,"Cases/Defendants",651,903,188,460,{"$f":"SUM(D46:G46)","v":2202},null,352,645,3408,390,575,42,5412,null,7614]
[null,null,"Reopenings",667,126,284,151,{"$f":"SUM(D47:G47)","v":1228},null,451,316,0,179,652,49,1647,null,2875]
[null,null,"NOA's",32,0,0,2,{"$f":"SUM(D48:G48)","v":34},null,12,0,0,1,4,2,19,null,53]
[null,"June 2015"]
[null,null,"Cases/Defendants",685,826,165,542,{"$f":"SUM(D50:G50)","v":2218},null,337,791,3765,414,662,32,6001,null,8219]
[null,null,"Reopenings",666,172,335,162,{"$f":"SUM(D51:G51)","v":1335},null,538,282,0,223,755,65,1863,null,3198]
[null,null,"NOA's",21,3,0,3,{"$f":"SUM(D52:G52)","v":27},null,10,3,1,1,1,3,19,null,46]
[null,"July 2015"]
[null,null,"Cases/Defendants",662,878,167,606,{"$f":"SUM(D54:G54)","v":2313},null,409,690,3563,416,582,26,{"$f":"SUM(J54:O54)","v":5686},null,{"$f":"H54+P54","v":7999}]
[null,null,"Reopenings",639,156,342,174,{"$f":"SUM(D55:G55)","v":1311},null,476,290,0,209,798,71,{"$f":"SUM(J55:O55)","v":1844},null,{"$f":"H55+P55","v":3155}]
[null,null,"NOA's",39,2,0,4,{"$f":"SUM(D56:G56)","v":45},null,9,3,0,0,0,5,{"$f":"SUM(J56:O56)","v":17},null,{"$f":"H56+P56","v":62}]
[null,"August 2015"]
[null,null,"Cases/Defendants",null,null,null,null,{"$f":"SUM(D58:G58)","v":0},null,null,null,null,null,null,null,{"$f":"SUM(J58:O58)","v":0},null,{"$f":"H58+P58","v":0}]
[null,null,"Reopenings",null,null,null,null,{"$f":"SUM(D59:G59)","v":0},null,null,null,0,null,null,null,{"$f":"SUM(J59:O59)","v":0},null,{"$f":"H59+P59","v":0}]
[null,null,"NOA's",null,null,null,null,{"$f":"SUM(D60:G60)","v":0},null,null,null,null,null,null,null,{"$f":"SUM(J60:O60)","v":0},null,{"$f":"H60+P60","v":0}]
[null,"September 2015"]
[null,null,"Cases/Defendants",null,null,null,null,{"$f":"SUM(D62:G62)","v":0},null,null,null,null,null,null,null,{"$f":"SUM(J62:O62)","v":0},null,{"$f":"H62+P62","v":0}]
[null,null,"Reopenings",null,null,null,null,{"$f":"SUM(D63:G63)","v":0},null,null,null,0,null,null,null,{"$f":"SUM(J63:O63)","v":0},null,{"$f":"H63+P63","v":0}]
[null,null,"NOA's",null,null,null,null,{"$f":"SUM(D64:G64)","v":0},null,null,null,null,null,null,null,{"$f":"SUM(J64:O64)","v":0},null,{"$f":"H64+P64","v":0}]
[null,"Year-to-Date"]
[null,null,"Cases/Defendants",{"$f":"SUM(D54+D58+D62+D18+D22+D26+D30+D34+D38+D42+D46+D50)","v":6339},8146,1579,5230,{"$f":"SUM(D66:G66)","v":21294},null,{"$f":"SUM(J54+J58+J62+J18+J22+J26+J30+J34+J38+J42+J46+J50)","v":3637},7025,37264,3969,5754,375,58024,null,79318]
[null,null,"Reopenings",6697,1603,2595,1600,{"$f":"SUM(D67:G67)","v":12495},null,5156,2842,0,1882,7333,514,17727,null,30222]
[null,null,"NOA's",337,19,0,33,{"$f":"SUM(D68:G68)","v":389},null,87,11,3,5,21,22,149,null,538]
[null,"Year-to-Date % of Projections"]
[null,null,"Cases/Defendants",{"$f":"D66/D14","v":0.66726315789473689},0.77580952380952384,0.87722222222222224,0.58111111111111113,0.6913636363636364,null,{"$f":"J66/J14","v":0.60616666666666663},1.0035714285714286,0.63159322033898302,0.88200000000000001,0.76719999999999999,1.25,0.68830367734282327,null,{"$f":"R66/R14","v":0.68912250217202431}]
[null,null,"Reopenings",0.88118421052631579,0.80149999999999999,1.2975000000000001,0.76190476190476186,0.91204379562043791,null,{"$f":"J67/J15","v":0.99153846153846159},{"$f":"K67/K15","v":0.74789473684210528},0,{"$f":"M67/M15","v":1.0455555555555556},1.0045205479452055,1.1422222222222222,0.95563342318059297,null,{"$f":"R67/R15","v":0.93711627906976747}]
[null,null,"NOA's",0.56166666666666665,0.76,0,1.32,0.59571209800918834,null,{"$f":"J68/J16","v":1.0874999999999999},{"$f":"K68/K16","v":0.55000000000000004},{"$f":"L68/L16","v":0.2},0.5,0.6,1.1000000000000001,0.82777777777777772,null,{"$f":"R68/R16","v":0.64585834333733494}]
[]
[]
[]
[]
[null,null,null,null,null,null,null,null,null,null,null,null,null,null,null,null,null,null,null,null,null,"Alachua","Oct",1]
[null,null,null,null,null,null,null,null,null,null,null,null,null,null,null,null,null,null,null,null,null,"Baker","Nov",2]
[null,null,null,null,null,null,null,null,null,null,null,null,null,null,null,null,null,null,null,null,null,"Bay","Dec",3]
[null,null,null,null,null,null,null,null,null,null,null,null,null,null,null,null,null,null,null,null,null,"Bradford","Jan",4]
[null,null,null,null,null,null,null,null,null,null,null,null,null,null,null,null,null,null,null,null,null,"Brevard","Feb",5]
[null,null,null,null,null,null,null,null,null,null,null,null,null,null,null,null,null,null,null,null,null,"Broward","Mar",6]
[null,null,null,null,null,null,null,null,null,null,null,null,null,null,null,null,null,null,null,null,null,"Calhoun","Apr",7]
[null,null,null,null,null,null,null,null,null,null,null,null,null,null,null,null,null,null,null,null,null,"Charlotte","May",8]
[null,null,null,null,null,null,null,null,null,null,null,null,null,null,null,null,null,null,null,null,null,"Citrus","Jun",9]
[null,null,null,null,null,null,null,null,null,null,null,null,null,null,null,null,null,null,null,null,null,"Clay","Jul",10]
[null,null,null,null,null,null,null,null,null,null,null,null,null,null,null,null,null,null,null,null,null,"Collier","Aug"]
[null,null,null,null,null,null,null,null,null,null,null,null,null,null,null,null,null,null,null,null,null,"Columbia","Sep"]
[null,null,null,null,null,null,null,null,null,null,null,null,null,null,null,null,null,null,null,null,null,"Dade"]
[null,null,null,null,null,null,null,null,null,null,null,null,null,null,null,null,null,null,null,null,null,"Desoto"]
[null,null,null,null,null,null,null,null,null,null,null,null,null,null,null,null,null,null,null,null,null,"Dixie"]
[null,null,null,null,null,null,null,null,null,null,null,null,null,null,null,null,null,null,null,null,null,"Duval"]
[null,null,null,null,null,null,null,null,null,null,null,null,null,null,null,null,null,null,null,null,null,"Escambia"]
[null,null,null,null,null,null,null,null,null,null,null,null,null,null,null,null,null,null,null,null,null,"Flagler"]
[null,null,null,null,null,null,null,null,null,null,null,null,null,null,null,null,null,null,null,null,null,"Franklin"]
[null,null,null,null,null,null,null,null,null,null,null,null,null,null,null,null,null,null,null,null,null,"Gadsden"]
[null,null,null,null,null,null,null,null,null,null,null,null,null,null,null,null,null,null,null,null,null,"Gilchrist"]
[null,null,null,null,null,null,null,null,null,null,null,null,null,null,null,null,null,null,null,null,null,"Glades"]
[null,null,null,null,null,null,null,null,null,null,null,null,null,null,null,null,null,null,null,null,null,"Gulf"]
[null,null,null,null,null,null,null,null,null,null,null,null,null,null,null,null,null,null,null,null,null,"Hamilton"]
[null,null,null,null,null,null,null,null,null,null,null,null,null,null,null,null,null,null,null,null,null,"Hardee"]
[null,null,null,null,null,null,null,null,null,null,null,null,null,null,null,null,null,null,null,null,null,"Hendry"]
[null,null,null,null,null,null,null,null,null,null,null,null,null,null,null,null,null,null,null,null,null,"Hernando"]
[null,null,null,null,null,null,null,null,null,null,null,null,null,null,null,null,null,null,null,null,null,"Highlands"]
[null,null,null,null,null,null,null,null,null,null,null,null,null,null,null,null,null,null,null,null,null,"Hillsborough"]
[null,null,null,null,null,null,null,null,null,null,null,null,null,null,null,null,null,null,null,null,null,"Holmes"]
[null,null,null,null,null,null,null,null,null,null,null,null,null,null,null,null,null,null,null,null,null,"Indian River"]
[null,null,null,null,null,null,null,null,null,null,null,null,null,null,null,null,null,null,null,null,null,"Jackson"]
[null,null,null,null,null,null,null,null,null,null,null,null,null,null,null,null,null,null,null,null,null,"Jefferson"]
[null,null,null,null,null,null,null,null,null,null,null,null,null,null,null,null,null,null,null,null,null,"Lafayette"]
[null,null,null,null,null,null,null,null,null,null,null,null,null,null,null,null,null,null,null,null,null,"Lake"]
[null,null,null,null,null,null,null,null,null,null,null,null,null,null,null,null,null,null,null,null,null,"Lee"]
[null,null,null,null,null,null,null,null,null,null,null,null,null,null,null,null,null,null,null,null,null,"Leon"]
[null,null,null,null,null,null,null,null,null,null,null,null,null,null,null,null,null,null,null,null,null,"Levy"]
[null,null,null,null,null,null,null,null,null,null,null,null,null,null,null,null,null,null,null,null,null,"Liberty"]
[null,null,null,null,null,null,null,null,null,null,null,null,null,null,null,null,null,null,null,null,null,"Madison"]
[null,null,null,null,null,null,null,null,null,null,null,null,null,null,null,null,null,null,null,null,null,"Manatee"]
[null,null,null,null,null,null,null,null,null,null,null,null,null,null,null,null,null,null,null,null,null,"Marion"]
[null,null,null,null,null,null,null,null,null,null,null,null,null,null,null,null,null,null,null,null,null,"Martin"]
[null,null,null,null,null,null,null,null,null,null,null,null,null,null,null,null,null,null,null,null,null,"Monroe"]
[null,null,null,null,null,null,null,null,null,null,null,null,null,null,null,null,null,null,null,null,null,"Nassau"]
[null,null,null,null,null,null,null,null,null,null,null,null,null,null,null,null,null,null,null,null,null,"Okaloosa"]
[null,null,null,null,null,null,null,null,null,null,null,null,null,null,null,null,null,null,null,null,null,"Okeechobee"]
[null,null,null,null,null,null,null,null,null,null,null,null,null,null,null,null,null,null,null,null,null,"Orange"]
[null,null,null,null,null,null,null,null,null,null,null,null,null,null,null,null,null,null,null,null,null,"Osceola"]
[null,null,null,null,null,null,null,null,null,null,null,null,null,null,null,null,null,null,null,null,null,"Palm Beach"]
[null,null,null,null,null,null,null,null,null,null,null,null,null,null,null,null,null,null,null,null,null,"Pasco"]
[null,null,null,null,null,null,null,null,null,null,null,null,null,null,null,null,null,null,null,null,null,"Pinellas"]
[null,null,null,null,null,null,null,null,null,null,null,null,null,null,null,null,null,null,null,null,null,"Polk"]
[null,null,null,null,null,null,null,null,null,null,null,null,null,null,null,null,null,null,null,null,null,"Putnam"]
[null,null,null,null,null,null,null,null,null,null,null,null,null,null,null,null,null,null,null,null,null,"Santa Rosa"]
[null,null,null,null,null,null,null,null,null,null,null,null,null,null,null,null,null,null,null,null,null,"Sarasota"]
[null,null,null,null,null,null,null,null,null,null,null,null,null,null,null,null,null,null,null,null,null,"Seminole"]
[null,null,null,null,null,null,null,null,null,null,null,null,null,null,null,null,null,null,null,null,null,"St. Johns"]
[null,null,null,null,null,null,null,null,null,null,null,null,null,null,null,null,null,null,null,null,null,"St. Lucie"]
[null,null,null,null,null,null,null,null,null,null,null,null,null,null,null,null,null,null,null,null,null,"Sumter"]
[null,null,null,null,null,null,null,null,null,null,null,null,null,null,null,null,null,null,null,null,null,"Suwannee"]
[null,null,null,null,null,null,null,null,null,null,null,null,null,null,null,null,null,null,null,null,null,"Taylor"]
[null,null,null,null,null,null,null,null,null,null,null,null,null,null,null,null,null,null,null,null,null,"Union"]
[null,null,null,null,null,null,null,null,null,null,null,null,null,null,null,null,null,null,null,null,null,"Volusia"]
[null,null,null,null,null,null,null,null,null,null,null,null,null,null,null,null,null,null,null,null,null,"Wakulla"]
[null,null,null,null,null,null,null,null,null,null,null,null,null,null,null,null,null,null,null,null,null,"Walton"]
[null,null,null,null,null,null,null,null,null,null,null,null,null,null,null,null,null,null,null,null,null,"Washington"]

{"sheet":"DownloadBudgetData (1)","index":1,"n_rows":68,"n_cols":33,"rows_kept":68,"cut":false,"hidden":true,"merged":[]}
["FiscalYear","County","Outputs_NewCases_CrimCir","Outputs_NewCases_CrimCounty","Outputs_NewCases_CrimJuvDel","Outputs_NewCases_CrimTraf","Outputs_NewCases_CivCir","Outputs_NewCases_CivCounty","Outputs_NewCases_CivProbate","Outputs_NewCases_CivFamily","Outputs_NewCases_CivJuvDep","Outputs_NewCases_CivTraf","Outputs_Reopens_CrimCir","Outputs_Reopens_CrimCounty","Outputs_Reopens_CrimJuvDel","Outputs_Reopens_CrimTraf","Outputs_Reopens_CivCir","Outputs_Reopens_CivCounty","Outputs_Reopens_CivProbate","Outputs_Reopens_CivFamily","Outputs_Reopens_CivJuvDep","Outputs_Reopens_CivTraf","Outputs_NoticesOfAppeal_CrimCir","Outputs_NoticesOfAppeal_CrimCounty","Outputs_NoticesOfAppeal_CrimJuvDel","Outputs_NoticesOfAppeal_CrimTraf","Outputs_NoticesOfAppeal_CivCir","Outputs_NoticesOfAppeal_CivCounty","Outputs_NoticesOfAppeal_CivProbate","Outputs_NoticesOfAppeal_CivFamily","Outputs_NoticesOfAppeal_CivJuvDep","Outputs_NoticesOfAppeal_CivTraf","Outputs_FinReceipts"]
["2014-2015","Alachua",4600,6200,1400,5400,1950,3900,2100,2650,180,61000,2000,750,850,1455,1500,2800,1600,4700,270,0,180,12,5,7,80,3,3,4700,270,0,150000]
["2014-2015","Baker",530,771,89,415,256,209,192,544,108,3631,296,467,27,125,23,26,74,228,7,0,10,467,27,125,1,26,1,228,7,0,32467]
["2014-2015","Bay",4288,8669,1142,4622,1606,2651,1472,2371,314,33259,2260,972,559,676,1182,798,45,1973,1102,0,210,5,5,2,30,3,2,10,12,0,76286]
["2014-2015","Bradford",820,600,80,375,250,300,100,350,8,7700,250,190,30,135,60,45,12,235,8,0,1,190,30,135,10,45,12,235,8,0,12500]
["2014-2015","Brevard",9500,10500,1800,9000,6000,7000,4500,7500,300,59000,7600,2000,2000,2100,5200,3800,1800,7300,450,0,600,25,3,25,80,20,10,35,20,15,453519]
["2014-2015","Broward",17880,26900,5640,32460,26040,62130,10100,24220,900,389160,11640,8000,3700,9360,46080,31560,430,22180,2520,0,840,90,70,0,660,180,30,120,20,10,925000]
["2014-2015","Calhoun",210,240,30,125,75,120,55,240,10,1600,160,45,6,40,7,10,1,60,10,0,19,45,6,40,3,10,1,60,1,0,4900]
["2014-2015","Charlotte",2200,2500,650,2500,1500,1950,2300,2000,100,16000,1100,450,320,525,1100,450,450,650,35,0,84,7,3,3,35,4,2,1,4,1,52000]
["2014-2015","Citrus",1550,2098,300,1100,1650,1700,1450,2000,185,9000,2700,1100,180,700,1028,715,800,1460,850,0,143,2,2,1,24,4,3,4,12,2,130000]
["2014-2015","Clay",2200,2450,802,2060,1700,2330,891,2300,295,21900,1060,435,305,586,930,560,36,1770,1641,0,10,1,1,2,22,5,1,12,4,1,56567]
["2014-2015","Collier",2550,4200,850,5100,2900,3800,3400,3000,300,41300,1750,1400,240,1200,3800,1500,1250,2800,400,0,120,1,1,7,80,30,1,3,22,1,204000]
["2014-2015","Columbia",1000,1400,300,1100,550,1110,500,1300,140,11000,1200,350,160,425,130,150,20,1050,90,0,60,350,160,1,15,2,1,1,1,1,23000]
["2014-2015","Dade",33100,54000,5100,76000,40000,82700,12000,31000,4000,822000,28000,15200,5300,50000,65000,26000,30000,24400,9550,0,1100,40,100,30,960,330,33,115,80,0,2200000]
["2014-2015","Desoto",550,730,250,435,250,312,125,450,40,5000,200,90,20,75,30,5,1,5,15,0,15,5,2,1,15,1,1,1,5,1,9000]
["2014-2015","Dixie",240,325,42,175,120,130,80,375,22,3500,220,22,2,25,22,8,5,30,1,0,2,22,2,25,2,8,5,30,1,0,4870]
["2014-2015","Duval",12071,22160,3161,18887,9497,21140,6961,14531,1104,128693,8824,2495,1218,2076,5139,2161,941,6802,587,0,684,12,6,17,166,177,4,72,155,11,285815]
["2014-2015","Escambia",6600,8300,1700,4200,2400,4100,3300,6100,240,29000,6800,3800,5800,400,1400,1800,2300,6700,4100,0,670,30,4,4,50,15,3,15,15,5,128400]
["2014-2015","Flagler",1152,1450,348,1046,846,1023,712,1237,33,9500,461,189,161,106,473,244,187,600,260,0,40,189,161,1,20,244,187,1,1,0,24000]
["2014-2015","Franklin",282,638,44,157,135,115,64,220,6,1100,150,173,25,77,100,1,1,92,1,0,2,2,25,77,4,1,1,2,1,0,5346]
["2014-2015","Gadsden",551,661,126,981,428,572,425,592,12,11937,572,476,29,981,135,416,28,672,12,0,110,476,29,981,135,416,28,672,12,0,22241]
["2014-2015","Gilchrist",240,300,65,165,130,130,80,280,12,1200,85,25,20,60,25,5,5,180,1,0,2,25,20,60,1,5,1,2,1,0,3500]
["2014-2015","Glades",143,280,12,203,73,92,54,116,6,4430,31,14,12,17,10,2,54,50,6,0,5,14,12,17,1,2,54,50,6,0,5285]
["2014-2015","Gulf",296,306,38,174,167,136,99,198,6,691,139,47,7,48,90,7,99,135,2,0,3,47,7,48,6,7,99,3,2,0,3360]
["2014-2015","Hamilton",275,291,75,379,154,123,71,285,12,4595,219,5,5,5,42,5,15,151,11,0,10,1,1,1,10,2,2,2,1,1,7963]
["2014-2015","Hardee",397,598,141,683,173,179,98,468,25,5472,133,42,50,20,79,51,70,486,89,0,133,42,50,20,79,51,70,486,89,0,12500]
["2014-2015","Hendry",730,1600,240,1050,360,370,125,690,30,6000,30,120,30,30,70,15,30,190,90,0,3,1,1,1,3,1,30,190,90,0,15000]
["2014-2015","Hernando",2450,2675,575,2000,2500,2400,2500,2500,165,28000,3500,425,200,250,1600,800,800,1200,500,0,100,5,1,1,40,2,1,5,5,1,65820]
["2014-2015","Highlands",1178,1278,514,922,732,936,1234,1172,34,8884,1144,1786,1614,1454,262,212,224,1734,290,0,74,1786,2,4,10,212,224,6,2,0,27000]
["2014-2015","Hillsborough",19475,27000,5796,35000,16575,35700,9200,20100,688,193500,15000,1850,3330,600,16200,13700,5200,15680,540,0,1318,18,65,18,246,23,6,94,79,14,525200]
["2014-2015","Holmes",350,530,70,300,130,200,105,328,17,3600,320,120,12,43,14,11,5,35,25,0,11,120,12,43,4,11,5,35,25,0,7500]
["2014-2015","Indian River",1600,3300,600,1500,1500,1800,1200,1800,100,15000,1500,300,1500,1400,1100,600,500,1900,1600,0,50,3,10,1,50,4,1,12,4,1,46000]
["2014-2015","Jackson",650,1060,100,554,805,615,305,240,58,9930,350,61,10,36,81,18,267,418,10,0,34,61,10,36,16,18,1,418,6,1,16500]
["2014-2015","Jefferson",164,197,28,211,128,90,76,154,7,5707,104,7,12,5,14,95,2,211,12,0,2,2,12,2,3,2,1,1,12,0,7333]
["2014-2015","Lafayette",59,96,11,65,57,72,41,151,3,575,54,10,4,10,5,8,1,20,1,0,4,1,1,1,4,1,1,1,1,1,1385]
["2014-2015","Lake",3550,3800,1175,4250,2750,4000,2400,3400,200,35000,1300,700,300,550,2600,1950,600,4300,1350,0,140,4,1,4,50,2,3,8,8,5,337850]
["2014-2015","Lee",6000,18400,2500,10700,6000,9000,5500,8600,450,94000,17000,4500,675,4200,5000,3000,2800,6800,1000,0,250,15,5,10,180,20,4,40,8,2,220000]
["2014-2015","Leon",3881,4163,986,3343,3530,5951,2571,3726,114,41524,804,414,4215,573,1760,2067,1391,5912,2024,0,447,11,5,11,249,26,1,21,17,3,154000]
["2014-2015","Levy",895,900,155,715,425,300,200,700,25,3500,275,226,225,75,150,100,25,450,125,0,25,3,1,3,10,3,1,4,3,2,9822]
["2014-2015","Liberty",93,137,9,93,65,31,26,115,5,703,74,24,1,33,10,1,1,51,1,0,3,24,1,33,4,1,1,51,1,0,6250]
["2014-2015","Madison",355,453,120,475,170,210,125,330,7,12300,300,30,26,28,13,14,2,240,3,0,10,1,1,28,3,14,2,240,3,0,19000]
["2014-2015","Manatee",4700,6000,1000,5000,2500,5000,3000,4000,700,40000,3500,750,1200,1000,3000,2000,1200,5000,1100,0,150,10,15,4,50,5,1200,15,5,0,120000]
["2014-2015","Marion",4634,5252,1146,4560,4380,4087,4757,5717,285,27967,5797,1580,818,3092,2897,1905,606,6652,1558,0,356,13,1,11,75,12,6,18,15,3,394400]
["2014-2015","Martin",1781,2750,387,3425,1515,1691,1355,1488,102,21392,2025,408,885,234,688,461,405,882,42,0,80,3,3,14,48,6,405,9,6,0,54100]
["2014-2015","Monroe",1589,3643,225,943,1314,1304,483,1565,63,29297,651,249,130,112,578,147,53,322,258,0,65,7,4,3,30,3,2,8,2,2,45000]
["2014-2015","Nassau",1000,1600,200,1650,725,700,350,1250,35,8000,350,1000,60,1200,450,300,80,800,230,0,60,3,1,1,10,2,1,1,230,0,21050]
["2014-2015","Okaloosa",3000,5100,950,3500,1800,2700,1400,3400,400,23000,3703,1939,540,672,1644,1125,331,2611,259,0,100,1,540,672,40,2,1,15,2,0,75000]
["2014-2015","Okeechobee",828,708,144,624,360,360,228,492,96,4008,324,120,48,36,348,216,36,372,432,0,60,120,48,36,6,216,1,1,432,0,15443]
["2014-2015","Orange",18100,21100,5400,17550,12740,28770,5980,17800,590,260000,9600,3000,6600,2200,24000,11500,4300,16800,1800,0,640,40,60,20,380,60,15,80,10,5,872000]
["2014-2015","Osceola",4799,5379,1430,5500,4202,4721,1280,4952,109,76050,8062,6238,1420,3036,2300,650,320,2950,1819,0,114,10,4,4,62,9,6,10,10,1,191070]
["2014-2015","Palm Beach",14325,34460,3999,31146,19491,30629,10705,14326,872,278156,6774,1916,1510,2904,14829,3398,5708,14331,519,0,651,37,30,44,501,80,37,127,20,35,565000]
["2014-2015","Pasco",9115,14750,2350,6750,5075,7275,2750,6175,325,47000,17500,3839,2000,2350,4025,2075,1600,2975,6750,0,180,15,5,10,125,15,15,25,40,3,63581]
["2014-2015","Pinellas",24500,34500,6200,21380,11000,20500,10400,14100,1100,107450,8280,1500,3180,4870,2190,3480,4060,7090,2000,0,260,30,20,44,120,50,15,50,15,15,418402]
["2014-2015","Polk",9384,16500,4000,9350,5400,10500,5200,10100,700,76720,10215,2851,2300,1650,6700,4100,1800,7800,1700,0,561,48,16,14,81,7,10,26,10,9,228000]
["2014-2015","Putnam",2200,2000,600,1800,600,1080,425,1600,40,8500,1800,350,150,300,180,200,35,1600,200,0,80,2,2,1,6,2,2,3,1,1,23000]
["2014-2015","Santa Rosa",1677,2350,492,1909,1397,1199,674,2527,113,18679,1338,738,225,372,602,620,473,1071,95,0,104,8,4,2,45,2,2,20,9,2,53663]
["2014-2015","Sarasota",4798,8835,695,6584,3966,7081,6894,4244,213,68979,4661,1395,418,1237,5505,2253,2735,2803,23,0,234,6,2,14,106,1,11,36,3,1,165761]
["2014-2015","Seminole",5000,7000,1900,6200,4400,8300,3000,5100,164,75000,3300,2200,1200,1620,4580,2550,1480,4440,3048,0,250,25,4,12,75,48,5,34,1,1,465500]
["2014-2015","St. Johns",2200,5250,650,1900,2100,2200,1350,2900,85,21000,2500,650,750,220,1000,35,40,800,50,0,90,3,2,1,40,5,2,28,3,0,47700]
["2014-2015","St. Lucie",4200,5600,1500,3600,3200,5000,2600,3100,425,47500,1600,2200,1100,1500,2400,1700,1200,2400,250,0,245,6,6,2,60,12,2,8,8,2,127000]
["2014-2015","Sumter",960,690,140,950,2000,470,800,860,40,13000,375,80,20,100,400,260,225,675,30,0,50,1,1,1,15,2,1,1,1,1,60000]
["2014-2015","Suwannee",640,590,185,600,340,480,250,960,15,4015,880,100,85,80,45,100,10,455,2,0,10,10,1,1,11,1,1,1,1,1,14384]
["2014-2015","Taylor",474,680,60,350,175,160,125,600,13,2500,465,205,3,350,60,50,3,135,1,0,12,1,3,350,18,1,3,135,1,0,7500]
["2014-2015","Union",225,265,50,120,110,140,130,240,3,800,65,115,16,65,50,15,8,200,8,0,10,1,16,65,10,15,8,200,8,0,3000]
["2014-2015","Volusia",9792,17414,2630,13076,4974,8060,5016,7350,360,78046,3558,1734,3094,376,4352,3066,1618,8516,1598,0,376,8,2,2,102,34,8,22,18,2,200000]
["2014-2015","Wakulla",345,375,70,450,475,275,165,500,20,3500,295,85,20,130,240,80,5,230,5,0,15,85,20,130,15,80,5,230,5,0,10650]
["2014-2015","Walton",750,2477,363,2235,1274,884,322,927,129,8319,631,566,87,233,508,159,17,324,29,0,50,5,87,1,28,3,17,2,1,0,29540]
["2014-2015","Washington",400,650,95,305,260,255,115,400,20,4000,220,75,5,85,25,2,5,200,2,0,25,75,5,85,10,2,5,200,2,0,26000]

{"sheet":"Timeliness Quarterly","index":2,"n_rows":82,"n_cols":702,"rows_kept":82,"cut":false,"hidden":false,"merged":[[75,10,77,10],[75,11,77,11],[75,12,77,12],[75,13,77,13],[75,14,77,14],[75,15,77,15],[75,16,77,16],[75,17,77,17],[69,10,71,10],[69,11,71,11],[69,12,71,12],[69,13,71,13],[69,14,71,14],[69,15,71,15],[69,16,71,16],[69,17,71,17],[72,10,74,10],[72,11,74,11],[72,12,74,12],[72,13,74,13],[72,14,74,14],[72,15,74,15],[72,16,74,16],[72,17,74,17],[63,10,65,10],[63,11,65,11],[63,12,65,12],[63,13,65,13],[63,14,65,14],[63,15,65,15],[63,16,65,16],[63,17,65,17],[66,10,68,10],[66,11,68,11],[66,12,68,12],[66,13,68,13],[66,14,68,14],[66,15,68,15],[66,16,68,16],[66,17,68,17],[56,10,58,10],[56,11,58,11],[56,12,58,12],[56,13,58,13],[56,14,58,14],[56,15,58,15],[56,16,58,16],[56,17,58,17],[60,10,62,10],[60,11,62,11],[60,12,62,12],[60,13,62,13],[60,14,62,14],[60,15,62,15],[60,16,62,16],[60,17,62,17],[50,10,52,10],[50,11,52,11],[50,12,52,12],[50,13,52,13],[50,14,52,14],[50,15,52,15],[50,16,52,16],[50,17,52,17],[53,10,55,10],[53,11,55,11],[53,12,55,12],[53,13,55,13],[53,14,55,14],[53,15,55,15],[53,16,55,16],[53,17,55,17],[45,10,45,11],[45,12,45,13],[45,14,45,15],[45,16,45,17],[47,10,49,10],[47,11,49,11],[47,12,49,12],[47,13,49,13],[47,14,49,14],[47,15,49,15],[47,16,49,16],[47,17,49,17],[36,10,38,10],[36,11,38,11],[36,12,38,12],[36,13,38,13],[36,14,38,14],[36,15,38,15],[36,16,38,16],[36,17,38,17],[39,10,41,10],[39,11,41,11],[39,12,41,12],[39,13,41,13],[39,14,41,14],[39,15,41,15],[39,16,41,16],[39,17,41,17],[30,10,32,10],[30,11,32,11],[30,12,32,12],[30,13,32,13],[30,14,32,14],[30,15,32,15],[30,16,32,16],[30,17,32,17],[33,10,35,10],[33,11,35,11],[33,12,35,12],[33,13,35,13],[33,14,35,14],[33,15,35,15],[33,16,35,16],[33,17,35,17],[24,12,26,12],[24,13,26,13],[24,14,26,14],[24,15,26,15],[24,16,26,16],[24,17,26,17],[20,14,22,14],[27,12,29,12],[27,13,29,13],[27,14,29,14],[27,15,29,15],[27,16,29,16],[27,17,29,17],[20,15,22,15],[20,16,22,16],[20,17,22,17],[9,14,9,15],[11,14,13,14],[11,15,13,15],[14,14,16,14],[14,15,16,15],[17,14,19,14],[17,15,19,15],[9,16,9,17],[11,16,13,16],[11,17,13,17],[14,16,16,16],[14,17,16,17],[17,16,19,16],[17,17,19,17],[9,12,9,13],[11,12,13,12],[11,13,13,13],[14,12,16,12],[14,13,16,13],[17,12,19,12],[17,13,19,13],[20,12,22,12],[20,13,22,13],[9,10,9,11],[11,10,13,10],[11,11,13,11],[14,10,16,10],[14,11,16,11],[27,10,29,10],[27,11,29,11],[17,10,19,10],[17,11,19,11],[20,10,22,10],[20,11,22,11],[24,10,26,10],[24,11,26,11],[72,3,74,3],[72,4,74,4],[63,0,65,1],[63,3,65,3],[63,4,65,4],[66,0,68,1],[66,3,68,3],[66,4,68,4],[81,2,81,8],[75,0,77,1],[75,3,77,3],[75,4,77,4],[69,0,71,1],[69,3,71,3],[69,4,71,4],[72,0,74,1],[47,0,49,1],[47,3,49,3],[47,4,49,4],[50,0,52,1],[50,3,52,3],[50,4,52,4],[60,0,62,1],[60,3,62,3],[60,4,62,4],[53,0,55,1],[53,3,55,3],[53,4,55,4],[56,0,58,1],[56,3,58,3],[56,4,58,4],[59,1,59,2],[39,0,41,1],[30,0,32,1],[33,0,35,1],[36,0,38,1],[36,3,38,3],[23,1,23,2],[45,3,46,3],[45,4,46,4],[46,1,46,2],[30,4,32,4],[27,3,29,3],[27,4,29,4],[39,3,41,3],[39,4,41,4],[33,3,35,3],[33,4,35,4],[36,4,38,4],[30,3,32,3],[24,3,26,3],[24,4,26,4],[24,0,26,1],[27,0,29,1],[14,0,16,1],[11,0,13,1],[17,4,19,4],[17,0,19,1],[20,4,22,4],[10,1,10,2],[9,4,10,4],[9,3,10,3],[11,3,13,3],[14,3,16,3],[17,3,19,3],[20,0,22,1],[6,6,6,8],[4,3,4,4],[4,6,4,7],[6,3,6,4],[5,6,5,7],[5,3,5,4],[20,3,22,3],[11,4,13,4],[14,4,16,4]]}
[]
[null,"County Fiscal Year 2014 - 2015"]
[null,"Timeliness Quarterly Report Form for CCOC"]
[]
[null,null,"Report Month of (Quarter Ending): ",{"$f":"'Outputs Monthly'!D6:E6","v":"Jun"},null,"Contact:","Michelle Levar"]
[null,null,"Version #: ",{"$f":"'Outputs Monthly'!D7:E7","v":1},null,"Telephone:","321-633-7782"]
[null,null,"County: ",{"$f":"'Outputs Monthly'!D8:E8","v":"Brevard"},null,"E-mail:","michelle.levar@brevardclerk.us"]
[]
["Timeliness Measures #1: Annual Projected % of new cases OPENED within X business days after initial documents are clocked in."]
[null,null,null,"Performance Measure Standard","# of business days","10/1/14 - 12/31/14","1/1/15 - 3/31/15","4/1/15 - 6/30/15","7/1/15 - 9/30/15",null,{"$f":"F10","v":"10/1/14 - 12/31/14"},null,{"$f":"G10","v":"1/1/15 - 3/31/15"},null,{"$f":"H10","v":"4/1/15 - 6/30/15"},null,{"$f":"I10","v":"7/1/15 - 9/30/15"}]
["A","Criminal",null,null,null,"1st Quarter","2nd Quarter","3rd Quarter","4th Quarter","Year-to-Date","Reason Code","Actions to Improve","Reason Code","Actions to Improve","Reason Code","Actions to Improve","Reason Code","Actions to Improve",null,1]
["Circuit (defendants)",null,"Total # of defendants",0.8,2,{"$f":"'Outputs Monthly'!D18+'Outputs Monthly'!D22+'Outputs Monthly'!D26","v":1775},{"$f":"'Outputs Monthly'!D30+'Outputs Monthly'!D34+'Outputs Monthly'!D38","v":1916},{"$f":"'Outputs Monthly'!D42+'Outputs Monthly'!D46+'Outputs Monthly'!D50","v":1986},{"$f":"'Outputs Monthly'!D54+'Outputs Monthly'!D58+'Outputs Monthly'!D62","v":662},{"$f":"SUM(F12:I12)","v":6339}]
[null,null,"# within 2 business days",null,null,1759,1883,1928,657,{"$f":"SUM(F13:I13)","v":6227},null,null,null,null,null,null,null,null,null,"E-Filing"]
[null,null,"% mtg level",null,null,{"$f":"F13/F12","v":0.99098591549295778},{"$f":"G13/G12","v":0.98277661795407101},{"$f":"H13/H12","v":0.97079556898288011},{"$f":"I13/I12","v":0.99244712990936557},{"$f":"J13/J12","v":0.9823315980438555},null,null,null,null,null,null,null,null,null,"Procedural"]
["County (defendants)",null,"Total # of defendants",0.8,3,{"$f":"'Outputs Monthly'!E18+'Outputs Monthly'!E22+'Outputs Monthly'!E26","v":2334},{"$f":"'Outputs Monthly'!E30+'Outputs Monthly'!E34+'Outputs Monthly'!E38","v":2357},{"$f":"'Outputs Monthly'!E42+'Outputs Monthly'!E46+'Outputs Monthly'!E50","v":2577},{"$f":"'Outputs Monthly'!E54+'Outputs Monthly'!E58+'Outputs Monthly'!E62","v":878},8146,null,null,null,null,null,null,null,null,null,"Staffing - Insufficient Personnel"]
[null,null,"# within 3 business days",null,null,2265,2279,2473,876,7893,null,null,null,null,null,null,null,null,null,"Staffing - Training Required"]
[null,null,"% mtg level",null,null,{"$f":"F16/F15","v":0.9704370179948586},{"$f":"G16/G15","v":0.96690708527789559},{"$f":"H16/H15","v":0.95964299573147072},{"$f":"I16/I15","v":0.99772209567198178},{"$f":"J16/J15","v":0.96894181193223672},null,null,null,null,null,null,null,null,null,"Systems"]
["Juvenile Delinquency (juveniles)",null,"Total # of juveniles",0.8,2,{"$f":"'Outputs Monthly'!F18+'Outputs Monthly'!F22+'Outputs Monthly'!F26","v":501},{"$f":"'Outputs Monthly'!F30+'Outputs Monthly'!F34+'Outputs Monthly'!F38","v":438},{"$f":"'Outputs Monthly'!F42+'Outputs Monthly'!F46+'Outputs Monthly'!F50","v":473},{"$f":"'Outputs Monthly'!F54+'Outputs Monthly'!F58+'Outputs Monthly'!F62","v":167},1579,null,null,null,null,null,null,null,null,null,"Other"]
[null,null,"# within 2 business days",null,null,491,430,466,166,1553]
[null,null,"% mtg level",null,null,{"$f":"F19/F18","v":0.98003992015968067},{"$f":"G19/G18","v":0.9817351598173516},{"$f":"H19/H18","v":0.985200845665962},{"$f":"I19/I18","v":0.99401197604790414},{"$f":"J19/J18","v":0.98353388220392657},null,null,null,null,null,null,null,null,null,null,null,null,null,null,null,null,null,null,null,null,null,null,null,null,null,null,null,null,null,null,null,null,null,null,null,null,null,null,null,null,null,null,null,null,null,null,null,null,null,null,null,null,null,null,null,null,null,null,null,null,null,null,null,null,null,null,null,null,null,null,null,null,null,null,null,null,null,null,null,null,null,null,null,null,null,null,null,null,null,null,null,null,null,null,null,null,null,null,null,null,null,null,null,null,null,null,null,null,null,null,null,null,null,null,null,null,null,null,null,null,null,null,null,null,null,null,null,null,null,null,null,null,null,null,null,null,null,null,null,null,null,null,null,null,null,null,null,null,null,null,null,null,null,null,null,null,null,null,null,null,null,null,null,null,null,null,null,null,null,null,null,null,null,null,null,null,null,null,null,null,null,null,null,null,null,null,null,null,null,null,null,null,null,null,null,null,null,null,null,null,null,null,null,null,null,null,null,null,null,null,null,null,null,null,null,null,null,null,null,null,null,null,null,null,null,null,null,null,null,null,null,null,null,null,null,null,null,null,null,null,null,null,null,null,null,null,null,null,null,null,null,null,null,null,null,null,null,null,null,null,null,null,null,null,null,null,null,null,null,null,null,null,null,null,null,null,null,null,null,null,null,null,null,null,null,null,null,null,null,null,null,null,null,null,null,null,null,null,null,null,null,null,null,null,null,null,null,null,null,null,null,null,null,null,null,null,null,null,null,null,null,null,null,null,null,null,null,null,null,null,null,null,null,null,null,null,null,null,null,null,null,null,null,null,null,null,null,null,null,null,null,null,null,null,null,null,null,null,null,null,null,null,null,null,null,null,null,null,null,null,null,null,null,null,null,null,null,null,null,null,null,null,null,null,null,null,null,null,null,null,null,null,null,null,null,null,null,null,null,null,null,null,null,null,null,null,null,null,null,null,null,null,null,null,null,null,null,null,null,null,null,null,null,null,null,null,null,null,null,null,null,null,null,null,null,null,null,null,null,null,null,null,null,null,null,null,null,null,null,null,null,null,null,null,null,null,null,null,null,null,null,null,null,null,null,null,null,null,null,null,null,null,null,null,null,null,null,null,null,null,null,null,null,null,null,null,null,null,null,null,null,null,null,null,null,null,null,null,null,null,null,null,null,null,null,null,null,null,null,null,null,null,null,null,null,null,null,null,null,null,null,null,null,null,null,null,null,null,null,null,null,null,null,null,null,null,null,null,null,null,null,null,null,null,null,null,null,null,null,null,null,null,null,null,null,null,null,null,null,null,null,null,null,null,null,null,null,null,null,null,null,null,null,null,null,null,null,null,null,null,null,null,null,null,null,null,null,null,null,null,null,null,null,null,null,null,null,null,null,null,null,null,null,null,null,null,null,null,null,null,null,null,null,null,null,null,null,null,null,null,null,null,null,null,null,null,null,null,null,null,null,null,null,null,null,null,null,null,null,null,null,null,null,null,null,null,null,null,null,null,null,null,null,null,null,null,null,null,null,null,null,null,null,null,null,null,null,null,null,null,null,null,null,null,null,null,null,null,null,null,null,null,null,null,null,null,null,null,null,null,null,"PABS4.0"]
["Traffic (UTC)",null,"Total # UTC",0.8,3,{"$f":"'Outputs Monthly'!G18+'Outputs Monthly'!G22+'Outputs Monthly'!G26","v":1562},{"$f":"'Outputs Monthly'!G30+'Outputs Monthly'!G34+'Outputs Monthly'!G38","v":1629},{"$f":"'Outputs Monthly'!G42+'Outputs Monthly'!G46+'Outputs Monthly'!G50","v":1433},{"$f":"'Outputs Monthly'!G54+'Outputs Monthly'!G58+'Outputs Monthly'!G62","v":606},5230]
[null,null,"# within 3 business days",null,null,1510,1512,1377,598,4997]
[null,null,"% mtg level",null,null,{"$f":"F22/F21","v":0.96670934699103717},{"$f":"G22/G21","v":0.92817679558011046},{"$f":"H22/H21","v":0.96092114445219823},{"$f":"I22/I21","v":0.98679867986798675},{"$f":"J22/J21","v":0.95544933078393879}]
["B","Civil"]
["Circuit (cases)",null,"Total # of cases",0.8,2,{"$f":"'Outputs Monthly'!J18+'Outputs Monthly'!J22+'Outputs Monthly'!J26","v":1048},{"$f":"'Outputs Monthly'!J30+'Outputs Monthly'!J34+'Outputs Monthly'!J38","v":1117},{"$f":"'Outputs Monthly'!J42+'Outputs Monthly'!J46+'Outputs Monthly'!J50","v":1063},{"$f":"'Outputs Monthly'!J54+'Outputs Monthly'!J58+'Outputs Monthly'!J62","v":409},3637]
[null,null,"# within 2 business days",null,null,978,1023,993,386,3380]
[null,null,"% mtg level",null,null,{"$f":"F26/F25","v":0.93320610687022898},{"$f":"G26/G25","v":0.91584601611459271},{"$f":"H26/H25","v":0.93414863593603015},{"$f":"I26/I25","v":0.94376528117359415},{"$f":"J26/J25","v":0.92933736596095684}]
["County (cases)",null,"Total # of cases",0.8,2,{"$f":"'Outputs Monthly'!K18+'Outputs Monthly'!K22+'Outputs Monthly'!K26","v":1827},{"$f":"'Outputs Monthly'!K30+'Outputs Monthly'!K34+'Outputs Monthly'!K38","v":2282},{"$f":"'Outputs Monthly'!K42+'Outputs Monthly'!K46+'Outputs Monthly'!K50","v":2226},{"$f":"'Outputs Monthly'!K54+'Outputs Monthly'!K58+'Outputs Monthly'!K62","v":690},7025]
[null,null,"# within 2 business days",null,null,1812,2248,2213,679,6952]
[null,null,"% mtg level",null,null,{"$f":"F29/F28","v":0.99178981937602628},{"$f":"G29/G28","v":0.98510078878177043},{"$f":"H29/H28","v":0.99415992812219223},{"$f":"I29/I28","v":0.98405797101449277},{"$f":"J29/J28","v":0.98960854092526696}]
["Traffic (UTC)",null,"Total # UTC",0.8,4,{"$f":"'Outputs Monthly'!L18+'Outputs Monthly'!L22+'Outputs Monthly'!L26","v":11680},{"$f":"'Outputs Monthly'!L30+'Outputs Monthly'!L34+'Outputs Monthly'!L38","v":11216},{"$f":"'Outputs Monthly'!L42+'Outputs Monthly'!L46+'Outputs Monthly'!L50","v":10805},{"$f":"'Outputs Monthly'!L54+'Outputs Monthly'!L58+'Outputs Monthly'!L62","v":3563},37264]
[null,null,"# within 4 business days",null,null,11621,10961,10756,3540,36878]
[null,null,"% mtg level",null,null,{"$f":"F32/F31","v":0.99494863013698631},{"$f":"G32/G31","v":0.9772646219686163},{"$f":"H32/H31","v":0.99546506247107824},{"$f":"I32/I31","v":0.99354476564692673},{"$f":"J32/J31","v":0.9896414770287677}]
["Circuit Probate (cases)",null,"Total # of cases",0.8,2,{"$f":"'Outputs Monthly'!M18+'Outputs Monthly'!M22+'Outputs Monthly'!M26","v":1022},{"$f":"'Outputs Monthly'!M30+'Outputs Monthly'!M34+'Outputs Monthly'!M38","v":1268},{"$f":"'Outputs Monthly'!M42+'Outputs Monthly'!M46+'Outputs Monthly'!M50","v":1263},{"$f":"'Outputs Monthly'!M54+'Outputs Monthly'!M58+'Outputs Monthly'!M62","v":416},3969]
[null,null,"# within 2 business days",null,null,1011,1241,1242,412,3906]
[null,null,"% mtg level",null,null,{"$f":"F35/F34","v":0.98923679060665359},{"$f":"G35/G34","v":0.97870662460567825},{"$f":"H35/H34","v":0.98337292161520184},{"$f":"I35/I34","v":0.99038461538461542},{"$f":"J35/J34","v":0.98412698412698407}]
["Family (cases)",null,"Total # of cases",0.8,3,{"$f":"'Outputs Monthly'!N18+'Outputs Monthly'!N22+'Outputs Monthly'!N26","v":1594},{"$f":"'Outputs Monthly'!N30+'Outputs Monthly'!N34+'Outputs Monthly'!N38","v":1701},{"$f":"'Outputs Monthly'!N42+'Outputs Monthly'!N46+'Outputs Monthly'!N50","v":1877},{"$f":"'Outputs Monthly'!N54+'Outputs Monthly'!N58+'Outputs Monthly'!N62","v":582},5754]
[null,null,"# within 3 business days",null,null,1550,1646,1864,581,5641]
[null,null,"% mtg level",null,null,{"$f":"F38/F37","v":0.97239648682559598},{"$f":"G38/G37","v":0.96766607877718991},{"$f":"H38/H37","v":0.99307405434203522},{"$f":"I38/I37","v":0.99828178694158076},{"$f":"J38/J37","v":0.9803614876607577}]
["Juvenile Dependency (cases)",null,"Total # of cases",0.8,2,{"$f":"'Outputs Monthly'!O18+'Outputs Monthly'!O22+'Outputs Monthly'!O26","v":103},{"$f":"'Outputs Monthly'!O30+'Outputs Monthly'!O34+'Outputs Monthly'!O38","v":145},{"$f":"'Outputs Monthly'!O42+'Outputs Monthly'!O46+'Outputs Monthly'!O50","v":101},{"$f":"'Outputs Monthly'!O54+'Outputs Monthly'!O58+'Outputs Monthly'!O62","v":26},375]
[null,null,"# within 2 business days",null,null,103,144,100,26,373]
[null,null,"% mtg level",null,null,{"$f":"F41/F40","v":1},{"$f":"G41/G40","v":0.99310344827586206},{"$f":"H41/H40","v":0.99009900990099009},{"$f":"I41/I40","v":1},{"$f":"J41/J40","v":0.9946666666666667}]
[]
[]
["Timeliness Measures #2: Annual Projected % of docket entries entered within X business days after clock in/action taken date."]
[null,null,null,"Performance Measure Standard","# of business days","10/1/14 - 12/31/14","1/1/15 - 3/31/15","4/1/15 - 6/30/15","7/1/15 - 9/30/15",null,{"$f":"F46","v":"10/1/14 - 12/31/14"},null,{"$f":"G46","v":"1/1/15 - 3/31/15"},null,{"$f":"H46","v":"4/1/15 - 6/30/15"},null,{"$f":"I46","v":"7/1/15 - 9/30/15"}]
["A","Criminal",null,null,38991,{"$f":"F11","v":"1st Quarter"},{"$f":"G11","v":"2nd Quarter"},"3rd Quarter","4th Quarter","Year-to-Date","Reason Code","Actions to Improve","Reason Code","Actions to Improve","Reason Code","Actions to Improve","Reason Code","Actions to Improve"]
["Circuit (defendants)",null,"Total # of docket entries",0.8,3,77050,79901,80971,27318,{"$f":"SUM(F48:I48)","v":265240}]
[null,null,"# within 3 business days",null,null,76768,79538,80690,27166,{"$f":"SUM(F49:I49)","v":264162}]
[null,null,"% mtg level",null,null,{"$f":"F49/F48","v":0.99634003893575596},{"$f":"G49/G48","v":0.99545687788638437},{"$f":"H49/H48","v":0.99652962171641701},{"$f":"I49/I48","v":0.99443590306757446},{"$f":"J49/J48","v":0.99593575629618458}]
["County (defendants)",null,"Total # of docket entries",0.8,3,44585,47649,42592,13849,148675]
[null,null,"# within 3 business days",null,null,44316,47358,42316,13793,147783]
[null,null,"% mtg level",null,null,{"$f":"F52/F51","v":0.99396658068857235},{"$f":"G52/G51","v":0.99389284140275769},{"$f":"H52/H51","v":0.99351990984222394},{"$f":"I52/I51","v":0.99595638674272513},{"$f":"J52/J51","v":0.99400033630401885}]
["Juvenile Delinquency (juveniles)",null,"Total # of docket entries",0.8,3,14651,16685,19898,6515,57749]
[null,null,"# within 3 business days",null,null,14624,16644,19882,6501,57651]
[null,null,"% mtg level",null,null,{"$f":"F55/F54","v":0.99815712238072485},{"$f":"G55/G54","v":0.9975427030266707},{"$f":"H55/H54","v":0.99919589908533524},{"$f":"I55/I54","v":0.99785111281657712},{"$f":"J55/J54","v":0.9983030009177648}]
["Traffic (UTC)",null,"Total # of docket entries",0.8,3,34819,37092,30906,10432,113249]
[null,null,"# within 3 business days",null,null,34616,36712,30673,10350,112351]
[null,null,"% mtg level",null,null,{"$f":"F58/F57","v":0.99416984979465239},{"$f":"G58/G57","v":0.98975520327833499},{"$f":"H58/H57","v":0.99246101080696303},{"$f":"I58/I57","v":0.99213957055214719},{"$f":"J58/J57","v":0.99207057015955991}]
["B","Civil"]
["Circuit (cases)",null,"Total # of docket entries",0.8,3,66488,67151,62452,19285,215376]
[null,null,"# within 3 business days",null,null,65274,66249,61689,19160,212372]
[null,null,"% mtg level",null,null,{"$f":"F62/F61","v":0.98174106605703282},{"$f":"G62/G61","v":0.98656758648419229},{"$f":"H62/H61","v":0.98778261704989434},{"$f":"I62/I61","v":0.9935182784547576},{"$f":"J62/J61","v":0.98605229923482651}]
["County (cases)",null,"Total # of docket entries",0.8,3,20192,21952,23234,8203,73581]
[null,null,"# within 3 business days",null,null,19750,21205,23029,7946,71930]
[null,null,"% mtg level",null,null,{"$f":"F65/F64","v":0.97811014263074481},{"$f":"G65/G64","v":0.96597120991253649},{"$f":"H65/H64","v":0.99117672376689336},{"$f":"I65/I64","v":0.96866999878093385},{"$f":"J65/J64","v":0.97756214240089156}]
["Traffic (UTC)",null,"Total # of docket entries",0.8,4,25579,24988,24531,8116,83214]
[null,null,"# within 4 business days",null,null,24971,24097,23978,7979,81025]
[null,null,"% mtg level",null,null,{"$f":"F68/F67","v":0.97623050158333002},{"$f":"G68/G67","v":0.9643428845846006},{"$f":"H68/H67","v":0.97745709510415391},{"$f":"I68/I67","v":0.9831197634302612},{"$f":"J68/J67","v":0.97369433028096231}]
["Circuit Probate (cases)",null,"Total # of docket entries",0.8,3,17582,18844,20240,6567,63233]
[null,null,"# within 3 business days",null,null,17346,18707,20123,6528,62704]
[null,null,"% mtg level",null,null,{"$f":"F71/F70","v":0.98657718120805371},{"$f":"G71/G70","v":0.99272978136276802},{"$f":"H71/H70","v":0.99421936758893281},{"$f":"I71/I70","v":0.99406121516674284},{"$f":"J71/J70","v":0.99163411509812915}]
["Family (cases)",null,"Total # of docket entries",0.8,3,37962,41369,45645,14245,139221]
[null,null,"# within 3 business days",null,null,36240,40383,45212,14162,135997]
[null,null,"% mtg level",null,null,{"$f":"F74/F73","v":0.95463884937569143},{"$f":"G74/G73","v":0.97616572796055012},{"$f":"H74/H73","v":0.9905137473984007},{"$f":"I74/I73","v":0.99417339417339412},{"$f":"J74/J73","v":0.97684257403696284}]
["Juvenile Dependency (juveniles)",null,"Total # of docket entries",0.8,3,6823,7882,8286,2190,25181]
[null,null,"# within 3 business days",null,null,6754,7830,8246,2188,25018]
[null,null,"% mtg level",null,null,{"$f":"F77/F76","v":0.9898871464165323},{"$f":"G77/G76","v":0.99340268967267187},{"$f":"H77/H76","v":0.9951725802558532},{"$f":"I77/I76","v":0.99908675799086755},{"$f":"J77/J76","v":0.99352686549382474}]
[]
[]
[null,null,"Notes:"]
[null,null,"Cases/Defendants output numbers are now pulled from the Outputs Monthly tab of this workbook."]

{"sheet":"CAP Count Summary","index":3,"n_rows":70,"n_cols":44,"rows_kept":70,"cut":false,"hidden":true,"merged":[[0,22,0,40]]}
["County","TIMELINESS STANDARD ONE (New Cases Opened)",null,null,null,null,null,null,null,null,null,null,null,null,null,null,null,null,null,null,null,null,"TIMELINESS STANDARD TWO (Docket Entries Processed)",null,null,null,null,null,null,null,null,null,null,null,null,null,null,null,null,null,null,null,null,"Sent Date"]
[null,"Circuit Criminal Reason","Improve Action","County Criminal Reason","Improve Action","Juvenile Delinquency Reason ","Improve Action","Criminal Traffic Reason ","Improve Action","Circuit Civil Reason","Improve Action","County Civil Reason","Improve Action","Civil Traffic Reason","Improve Action","Probate Reason","Improve Action","Family Reason","Improve Action","Juvenile Dependency Reason","Improve Action",null,"Circuit Criminal Reason","Improve Action","County Criminal Reason","Improve Action","Juvenile Delinquency Reason","Improve Action","Criminal Traffic Reason","Improve Action","Circuit Civil Reason","Improve Action","County Civil Reason","Improve Action","Civil Traffic Reason","Improve Action","Probate Reason","Improve Action","Family Reason","Improve Action","Juvenile Dependency Reason ","Improve Action"]
[]
["Alachua",null,null,null,null,null,null,null,null,null,null,null,null,null,null,null,null,null,null,null,null,null,null,null,null,null,null,null,null,null,null,null,null,null,null,null,null,null,null,null,null,null,null,20140220]
["Baker",null,null,null,null,null,null,null,null,null,null,null,null,null,null,null,null,null,null,null,null,null,null,null,null,null,null,null,null,null,null,null,null,null,null,null,null,null,null,null,null,null,null,20140207]
["Bay",null,null,null,null,null,null,null,null,null,null,null,null,null,null,null,null,null,null,null,null,null,null,null,null,null,null,null,null,null,null,null,null,null,null,null,null,null,null,null,null,null,null,20140218]
["Bradford",null,null,null,null,null,null,null,null,null,null,null,null,null,null,null,null,null,null,null,null,null,null,null,null,null,"Procedural","We are a small county with several Supreme Court death warrant appeals that had priority. ",null,null,null,null,null,null,null,null,null,null,null,null,"Procedural","We are a small county with several Supreme Court death warrant appeals that had priority. ",null,20140218]
["Brevard",null,null,null,null,null,null,null,null,null,null,null,null,null,null,null,null,null,null,null,null,null,null,null,null,null,null,null,null,null,null,null,null,null,null,null,null,null,null,null,null,null,null,20140218]
["Broward",null,null,null,null,null,null,null,null,null,null,null,null,null,null,"E-Filing","A high percentage of cases are rejected. When cases are resubmitted, the calculation for timeliness is based on the original file date.",null,null,null,null,null,null,null,null,null,null,null,null,null,null,null,null,null,null,null,null,null,null,null,"Systems","The division is still adjusting to new case maintenance system. E-filing should assist with improving the timeliness.",null,20140218]
["Calhoun",null,null,null,null,null,null,null,null,null,null,null,null,null,null,null,null,null,null,null,null,null,null,null,null,null,null,null,null,null,null,null,null,null,null,null,null,null,null,null,null,null,null,20140217]
["Charlotte",null,null,null,null,null,null,null,null,null,null,null,null,null,null,null,null,null,null,null,null,null,null,null,null,null,null,null,null,null,null,null,null,null,null,null,null,null,null,null,null,null,null,20140219]
["Citrus",null,null,null,null,null,null,null,null,null,null,null,null,null,null,null,null,null,null,null,null,null,null,null,null,null,null,null,null,null,null,null,null,null,null,null,null,null,null,null,null,null,null,20140206]
["Clay",null,null,null,null,null,null,null,null,null,null,null,null,null,null,null,null,null,null,null,null,null,null,null,null,null,null,null,null,null,null,null,null,null,null,null,null,null,null,null,null,null,null,20140218]
["Collier",null,null,null,null,null,null,null,null,null,null,null,null,null,null,null,null,null,null,null,null,null,null,null,null,null,null,null,null,null,null,null,null,null,null,null,null,null,null,null,null,null,null,20140220]
["Columbia",null,null,null,null,null,null,null,null,null,null,null,null,null,null,null,null,null,null,"Staffing - Insufficient Personnel","This is a one employee department. Employees in other departments will be used to cover this when employee is out.",null,null,null,null,null,null,null,null,null,null,null,null,null,null,null,null,null,null,null,null,null,null,20140219]
["Dade",null,null,"Staffing - Training Required","Training efforts have been completed. We anticipate rate will improve in the next quarter.",null,null,null,null,null,null,null,null,null,null,null,null,null,null,null,null,null,null,null,null,null,null,null,null,null,null,null,null,null,null,null,null,null,null,null,null,null,null,20140219]
["Desoto",null,null,null,null,null,null,null,null,null,null,null,null,null,null,null,null,null,null,null,null,null,null,null,null,null,null,null,null,null,null,null,null,null,null,null,null,null,null,null,null,null,null,20140206]
["Dixie"]
["Duval",null,null,null,null,null,null,null,null,null,null,null,null,null,null,null,null,null,null,null,null,null,null,null,null,null,null,null,null,null,null,null,null,null,null,null,null,null,null,null,null,null,null,20140225]
["Escambia",null,null,null,null,null,null,null,null,null,null,null,null,null,null,null,null,null,null,null,null,null,null,null,null,null,"Staffing - Training Required","Additional cross training will occur immediatley",null,null,null,null,null,null,null,null,null,null,null,null,null,null,null,20140210]
["Flagler",null,null,null,null,null,null,null,null,null,null,null,null,null,null,null,null,null,null,null,null,null,null,null,null,null,null,null,null,null,null,null,null,null,null,null,null,null,null,null,null,null,null,20140214]
["Franklin",null,null,null,null,null,null,null,null,null,null,null,null,null,null,null,null,null,null,null,null,null,null,null,null,null,null,null,null,null,null,null,null,null,null,null,null,null,null,null,null,null,null,20140212]
["Gadsden",null,null,null,null,null,null,null,null,"E-Filing","As the problems get worked out this will improve.",null,null,null,null,null,null,null,null,null,null,null,null,null,null,null,null,null,null,null,null,null,null,null,null,null,null,null,null,null,null,null,null,20140218]
["Gilchrist"]
["Glades",null,null,null,null,null,null,null,null,null,null,null,null,null,null,null,null,null,null,null,null,null,null,null,null,null,null,null,null,null,null,null,null,null,"Systems","Clericus was implemented 9/27/2013 and we are still learning the system.",null,null,null,null,null,null,null,20140224]
["Gulf",null,null,null,null,null,null,null,null,null,null,null,null,null,null,null,null,null,null,null,null,null,null,null,null,null,null,null,null,null,null,null,null,null,null,null,null,null,null,null,null,null,null,20140220]
["Hamilton",null,null,null,null,null,null,null,null,null,null,null,null,null,null,null,null,null,null,null,null,null,null,null,null,null,null,null,null,null,null,null,null,null,null,null,null,null,null,null,null,null,null,20140211]
["Hardee",null,null,null,null,null,null,null,null,null,null,null,null,null,null,null,null,null,null,null,null,null,null,null,null,null,null,null,null,null,null,null,null,null,null,null,null,null,null,null,null,null,null,20140220]
["Hendry",null,null,null,null,null,null,null,null,null,null,null,null,null,null,null,null,null,null,null,null,null,null,null,null,null,null,null,null,null,null,null,null,null,null,null,null,null,null,null,null,null,null,20140219]
["Hernando",null,null,null,null,null,null,null,null,null,null,null,null,null,null,null,null,null,null,null,null,null,null,null,null,null,null,null,null,null,null,null,null,null,null,null,null,null,null,null,null,null,null,20140220]
["Highlands",null,null,null,null,null,null,null,null,null,null,null,null,null,null,null,null,null,null,null,null,null,null,null,null,null,null,null,null,null,null,null,null,null,null,null,null,null,null,null,null,null,null,20140206]
["Hillsborough",null,null,null,null,null,null,null,null,null,null,null,null,null,null,null,null,null,null,null,null,null,null,null,null,null,null,null,null,null,null,null,null,null,null,null,null,null,null,null,null,null,null,20140220]
["Holmes",null,null,null,null,null,null,null,null,null,null,null,null,null,null,null,null,null,null,null,null,null,null,null,null,null,null,null,null,null,null,null,null,null,null,null,null,null,null,null,null,null,null,20140219]
["Indian River",null,null,null,null,null,null,null,null,null,null,null,null,null,null,null,null,null,null,null,null,null,null,null,null,null,null,null,null,null,null,null,null,null,null,null,null,null,null,null,null,null,null,20140208]
["Jackson",null,null,null,null,null,null,null,null,null,null,null,null,null,null,null,null,null,null,null,null,null,null,null,null,null,null,null,null,null,null,null,null,null,null,null,null,null,null,null,null,null,null,20140214]
["Jefferson",null,null,null,null,null,null,null,null,null,null,null,null,null,null,null,null,null,null,null,null,null,null,null,null,null,null,null,null,null,null,null,null,null,null,null,null,null,null,null,null,null,null,20140210]
["Lafayette",null,null,null,null,null,null,null,null,null,null,null,null,null,null,null,null,null,null,null,null,null,null,null,null,null,null,null,null,null,null,null,null,null,null,null,null,null,null,null,null,null,null,20140219]
["Lake",null,null,null,null,null,null,null,null,null,null,null,null,null,null,null,null,null,null,null,null,null,null,null,null,null,null,null,null,null,null,null,null,null,null,null,null,null,null,null,null,null,null,20140219]
["Lee",null,null,null,null,null,null,null,null,null,null,null,null,null,null,null,null,null,null,null,null,null,null,null,null,null,null,null,null,null,null,null,null,null,null,null,null,null,null,null,null,null,null,20140218]
["Leon",null,null,null,null,null,null,null,null,null,null,null,null,null,null,null,null,null,null,null,null,null,null,null,null,null,null,null,null,null,null,null,null,null,null,null,null,null,null,null,null,null,null,20140227]
["LEVY",null,null,null,null,null,null,null,null,null,null,null,null,null,null,null,null,null,null,null,null,null,null,null,null,null,null,null,null,null,null,null,null,null,null,null,null,null,null,null,null,null,null,20140217]
["Liberty","Staffing - Training Required","Due to the sudden retirement of a 30 year employee, we are training new staff.","Staffing - Training Required","Due to the sudden retirement of a 30 year employee, we are training new staff.",null,null,null,null,null,null,null,null,null,null,null,null,null,null,null,null,null,null,null,null,null,"Staffing - Training Required","Due to the sudden retirement of a 30 year employee, we are training new staff.",null,null,null,null,null,null,null,null,"Staffing - Training Required","Due to the sudden retirement of a 30 year employee, we are training new staff.",null,null,null,null,null,20140211]
["Madison",null,null,null,null,null,null,null,null,null,null,null,null,null,null,null,null,null,null,null,null,null,null,null,null,null,null,null,null,null,null,null,null,null,null,null,null,null,null,null,null,null,null,20140214]
["Manatee",null,null,null,null,null,null,null,null,null,null,null,null,null,null,null,null,null,null,null,null,null,null,null,null,null,null,null,null,null,null,null,null,null,null,null,null,null,null,null,null,null,null,20140220]
["Marion",null,null,null,null,null,null,"Procedural","Electornic citations led to errors in entering zeros as O's and O's as zeros in the citation number. We have asked the agencies to use a / thru zeros and staff to be more careful in keying.",null,null,null,null,null,null,null,null,null,null,null,null,null,null,null,null,null,null,null,null,null,"E-Filing","Established a mandatory 1.5 hrs/day for all civil staff to process efilings",null,null,null,null,null,null,null,null,null,null,null,20140211]
["Martin",null,null,null,null,null,null,null,null,null,null,null,null,null,null,null,null,null,null,null,null,null,null,null,null,null,null,null,null,null,null,null,null,null,null,null,null,null,null,null,null,null,null,20140217]
["Monroe",null,null,null,null,null,null,null,null,null,null,null,null,null,null,null,null,null,null,null,null,null,null,null,null,null,null,null,null,null,null,null,null,null,null,null,null,null,null,null,null,null,null,20140213]
["NASSAU",null,null,null,null,null,null,null,null,null,null,null,null,null,null,null,null,null,null,null,null,null,null,null,null,null,null,null,null,null,null,null,null,null,null,null,null,null,null,null,null,null,null,20140220]
["Okaloosa",null,null,null,null,null,null,null,null,null,null,null,null,null,null,null,null,null,null,null,null,null,null,null,null,null,null,null,null,null,null,null,null,null,null,null,null,null,null,null,null,null,null,20140211]
["Okeechobee",null,null,null,null,null,null,null,null,null,null,null,null,null,null,null,null,null,null,null,null,null,null,null,null,null,null,null,null,null,null,null,null,null,null,null,null,null,null,null,null,null,null,20140217]
["Orange",null,null,null,null,null,null,null,null,null,null,null,null,null,null,null,null,null,null,null,null,null,null,null,null,null,null,null,null,null,null,null,null,null,null,null,null,null,null,null,null,null,null,20140219]
["Osceola",null,null,null,null,null,null,null,null,null,null,null,null,"Systems","We experienced  problems entering traffic citations with our new Case Management System.  These problems are being corrected in our next release that will go live on 1/21/2014.  Also, in February we go live with Ecitations and this will help speed up the process.  ",null,null,null,null,null,null,null,null,null,null,null,null,null,null,null,null,null,null,null,null,null,null,null,null,null,null,null,null,20140219]
["Palm Beach",null,null,null,null,null,null,null,null,null,null,null,null,null,null,null,null,null,null,null,null,null,null,null,null,null,null,null,null,null,null,null,null,null,null,null,null,null,null,null,null,null,null,20140213]
["Pasco",null,null,null,null,null,null,null,null,null,null,null,null,null,null,null,null,null,null,null,null,null,null,null,null,null,null,null,null,null,null,null,null,null,null,null,null,null,null,null,null,null,null,20140220]
["Pinellas",null,null,null,null,null,null,null,null,null,null,null,null,null,null,null,null,null,null,null,null,null,null,null,null,null,null,null,null,null,null,null,null,null,null,null,null,null,null,null,null,null,null,20140220]
["Polk",null,null,null,null,null,null,null,null,null,null,null,null,null,null,"Procedural","Standards reviewed with staff when processing paper filings. eFiled cases were the focus when it should've been paper & electronic equally. Cases will be monitored more closely by management.",null,null,null,null,null,null,null,null,null,null,null,null,null,null,null,null,null,null,null,null,null,null,null,null,null,null,20140220]
["Putnam",null,null,null,null,null,null,null,null,null,null,"Staffing - Insufficient Personnel","Incidental - Bereavement & Sick Leave",null,null,"Staffing - Training Required","Reorganizing Office Staff at this Time",null,null,null,null,null,null,null,null,null,null,null,null,null,"Staffing - Insufficient Personnel","Incidental - Bereavement & Sick Leave","Staffing - Insufficient Personnel","Incidental - Bereavement & Sick Leave",null,null,"Staffing - Insufficient Personnel","Incidental - Bereavement & Sick Leave",null,null,null,null,null,20140218]
["Santa Rosa",null,null,null,null,null,null,null,null,null,null,null,null,null,null,null,null,null,null,null,null,null,null,null,null,null,null,null,null,null,null,null,null,null,null,null,null,null,null,null,null,null,null,20140219]
["Sarasota",null,null,null,null,null,null,null,null,null,null,null,null,null,null,null,null,null,null,null,null,null,null,null,null,null,null,null,null,null,null,null,null,null,null,null,null,null,null,null,null,null,null,20140219]
["Seminole",null,null,null,null,null,null,null,null,null,null,null,null,null,null,null,null,null,null,null,null,null,null,null,null,null,null,null,null,null,null,null,null,null,null,null,null,null,null,null,null,null,null,20140207]
["St. Johns",null,null,null,null,null,null,null,null,null,null,null,null,null,null,null,null,null,null,null,null,null,null,null,null,null,null,null,null,null,null,null,null,null,null,null,null,null,null,null,null,null,null,20140214]
["St. Lucie",null,null,null,null,null,null,null,null,null,null,null,null,null,null,null,null,null,null,null,null,null,null,null,null,null,null,null,null,null,null,null,null,null,null,null,null,null,null,null,null,null,null,20140210]
["Sumter","Staffing - Insufficient Personnel","Additional staff being hired to work in felony division to cover increased filings",null,null,null,null,null,null,null,null,null,null,null,null,null,null,null,null,null,null,null,null,null,null,null,null,null,null,null,null,null,null,null,null,null,null,null,null,null,null,null,null,20140210]
["Suwannee",null,null,null,null,null,null,null,null,null,null,null,null,null,null,null,null,null,null,null,null,null,null,null,"Staffing - Training Required","Additional training on meeting Performance Measures","Staffing - Training Required","Additional training on meeting Performance Measures","Staffing - Training Required","Additional training on meeting Performance Measures",null,null,null,null,null,null,null,null,null,null,null,null,null,20140217]
["Taylor",null,null,null,null,null,null,null,null,"E-Filing","Correct issues of filings not moving from eportal to CMS",null,null,null,null,null,null,null,null,null,null,null,null,null,null,null,null,null,null,null,null,null,null,null,null,null,null,null,null,null,null,null,null,20140211]
["Union",null,null,null,null,null,null,null,null,null,null,null,null,null,null,null,null,null,null,null,null,null,null,null,null,null,null,null,null,null,null,null,null,null,null,null,null,null,null,null,null,null,null,20140219]
["Volusia",null,null,null,null,null,null,null,null,null,null,null,null,null,null,null,null,null,null,null,null,null,null,null,null,null,null,null,null,null,null,null,null,null,null,null,null,null,null,null,null,null,null,20140218]
["Wakulla",null,null,null,null,null,null,null,null,null,null,null,null,null,null,null,null,null,null,null,null,null,null,null,null,null,null,null,null,null,null,null,null,null,null,null,null,null,null,null,null,null,null,20140214]
["Walton",null,null,null,null,null,null,null,null,null,null,null,null,null,null,null,null,null,null,null,null,null,null,null,null,null,null,null,null,null,null,null,null,null,null,null,null,null,null,null,null,null,null,20140218]
["Washington",null,null,null,null,null,null,null,null,null,null,null,null,null,null,null,null,null,null,null,null,null,"Other","Coversion, server, and move downtime",null,null,null,null,null,null,null,null,null,null,null,null,null,null,null,null,null,null,null,20140217]

{"sheet":"Action Plan Summary","index":4,"n_rows":92,"n_cols":7,"rows_kept":92,"cut":false,"hidden":false,"merged":[[88,0,91,0],[64,0,67,0],[68,0,71,0],[72,0,75,0],[76,0,79,0],[80,0,83,0],[84,0,87,0],[37,0,40,0],[41,0,44,0],[52,0,55,0],[56,0,59,0],[60,0,63,0],[45,0,48,0],[17,0,20,0],[21,0,24,0],[25,0,28,0],[29,0,32,0],[33,0,36,0],[4,3,4,4],[5,3,5,4],[6,3,6,4],[9,0,12,0],[13,0,16,0]]}
[]
["County Fiscal Year 2014 - 2015"]
["Timeliness Quarterly Action Plan Form for CCOC"]
[]
[null,null,"Report Month of (Quarter Ending): ",{"$f":"'Outputs Monthly'!D6:E6","v":"Jun"},null,"Contact:"]
[null,null,"Version #: ",{"$f":"'Outputs Monthly'!D7:E7","v":1},null,"Telephone:"]
[null,null,"County: ",{"$f":"'Outputs Monthly'!D8:E8","v":"Brevard"},null,"E-mail:"]
[]
[" \nTimeliness Measeure # 1","Quarter","CCOC Standard",{"$f":"'Timeliness Quarterly'!E10","v":"# of business days"},"Clerk Performance","Reason Code","Current Actions to Improve"]
["Circuit Criminal",{"$f":"'Timeliness Quarterly'!$F$10","v":"10/1/14 - 12/31/14"},{"$f":"'Timeliness Quarterly'!$D$12","v":0.8},{"$f":"'Timeliness Quarterly'!$E$12","v":2},{"$f":"IF(IFERROR('Timeliness Quarterly'!F$14,\"error\")=\"error\",\"\",IF('Timeliness Quarterly'!F$14<'Timeliness Quarterly'!$D$12,'Timeliness Quarterly'!F$14,\"\"))","v":""},{"$f":"IF(IFERROR('Timeliness Quarterly'!$K$12,\"error\")=\"error\",\"\",IF('Timeliness Quarterly'!$K$12=0,\"\",'Timeliness Quarterly'!$K$12))","v":""},{"$f":"IF(IFERROR('Timeliness Quarterly'!$L$12,\"error\")=\"error\",\"\",IF('Timeliness Quarterly'!$L$12=0,\"\",'Timeliness Quarterly'!$L$12))","v":""}]
[null,{"$f":"'Timeliness Quarterly'!$G$10","v":"1/1/15 - 3/31/15"},{"$f":"'Timeliness Quarterly'!$D$12","v":0.8},{"$f":"'Timeliness Quarterly'!$E$12","v":2},{"$f":"IF(IFERROR('Timeliness Quarterly'!G$14,\"error\")=\"error\",\"\",IF('Timeliness Quarterly'!G$14<'Timeliness Quarterly'!$D$12,'Timeliness Quarterly'!G$14,\"\"))","v":""},{"$f":"IF(IFERROR('Timeliness Quarterly'!$M$12,\"error\")=\"error\",\"\",IF('Timeliness Quarterly'!$M$12=0,\"\",'Timeliness Quarterly'!$M$12))","v":""},{"$f":"IF(IFERROR('Timeliness Quarterly'!$N$12,\"error\")=\"error\",\"\",IF('Timeliness Quarterly'!$N$12=0,\"\",'Timeliness Quarterly'!$N$12))","v":""}]
[null,{"$f":"'Timeliness Quarterly'!$H$10","v":"4/1/15 - 6/30/15"},{"$f":"'Timeliness Quarterly'!$D$12","v":0.8},{"$f":"'Timeliness Quarterly'!$E$12","v":2},{"$f":"IF(IFERROR('Timeliness Quarterly'!H$14,\"error\")=\"error\",\"\",IF('Timeliness Quarterly'!H$14<'Timeliness Quarterly'!$D$12,'Timeliness Quarterly'!H$14,\"\"))","v":""},{"$f":"IF(IFERROR('Timeliness Quarterly'!$O$12,\"error\")=\"error\",\"\",IF('Timeliness Quarterly'!$O$12=0,\"\",'Timeliness Quarterly'!$O$12))","v":""},{"$f":"IF(IFERROR('Timeliness Quarterly'!$P$12,\"error\")=\"error\",\"\",IF('Timeliness Quarterly'!$P$12=0,\"\",'Timeliness Quarterly'!$P$12))","v":""}]
[null,{"$f":"'Timeliness Quarterly'!$I$10","v":"7/1/15 - 9/30/15"},{"$f":"'Timeliness Quarterly'!$D$12","v":0.8},{"$f":"'Timeliness Quarterly'!$E$12","v":2},{"$f":"IF(IFERROR('Timeliness Quarterly'!I$14,\"error\")=\"error\",\"\",IF('Timeliness Quarterly'!I$14<'Timeliness Quarterly'!$D$12,'Timeliness Quarterly'!I$14,\"\"))","v":""},{"$f":"IF(IFERROR('Timeliness Quarterly'!$Q$12,\"error\")=\"error\",\"\",IF('Timeliness Quarterly'!$Q$12=0,\"\",'Timeliness Quarterly'!$Q$12))","v":""},{"$f":"IF(IFERROR('Timeliness Quarterly'!$R$12,\"error\")=\"error\",\"\",IF('Timeliness Quarterly'!$R$12=0,\"\",'Timeliness Quarterly'!$R$12))","v":""}]
["County Criminal",{"$f":"'Timeliness Quarterly'!$F$10","v":"10/1/14 - 12/31/14"},{"$f":"'Timeliness Quarterly'!$D$15","v":0.8},{"$f":"'Timeliness Quarterly'!$E$15","v":3},{"$f":"IF(IFERROR('Timeliness Quarterly'!F$17,\"error\")=\"error\",\"\",IF('Timeliness Quarterly'!F$17<'Timeliness Quarterly'!$D$15,'Timeliness Quarterly'!F$17,\"\"))","v":""},{"$f":"IF(IFERROR('Timeliness Quarterly'!$K$15,\"error\")=\"error\",\"\",IF('Timeliness Quarterly'!$K$15=0,\"\",'Timeliness Quarterly'!$K$15))","v":""},{"$f":"IF(IFERROR('Timeliness Quarterly'!$L$15,\"error\")=\"error\",\"\",IF('Timeliness Quarterly'!$L$15=0,\"\",'Timeliness Quarterly'!$L$15))","v":""}]
[null,{"$f":"'Timeliness Quarterly'!$G$10","v":"1/1/15 - 3/31/15"},{"$f":"'Timeliness Quarterly'!$D$15","v":0.8},{"$f":"'Timeliness Quarterly'!$E$15","v":3},{"$f":"IF(IFERROR('Timeliness Quarterly'!G$17,\"error\")=\"error\",\"\",IF('Timeliness Quarterly'!G$17<'Timeliness Quarterly'!$D$15,'Timeliness Quarterly'!G$17,\"\"))","v":""},{"$f":"IF(IFERROR('Timeliness Quarterly'!$M$15,\"error\")=\"error\",\"\",IF('Timeliness Quarterly'!$M$15=0,\"\",'Timeliness Quarterly'!$M$15))","v":""},{"$f":"IF(IFERROR('Timeliness Quarterly'!$N$15,\"error\")=\"error\",\"\",IF('Timeliness Quarterly'!$N$15=0,\"\",'Timeliness Quarterly'!$N$15))","v":""}]
[null,{"$f":"'Timeliness Quarterly'!$H$10","v":"4/1/15 - 6/30/15"},{"$f":"'Timeliness Quarterly'!$D$15","v":0.8},{"$f":"'Timeliness Quarterly'!$E$15","v":3},{"$f":"IF(IFERROR('Timeliness Quarterly'!H$17,\"error\")=\"error\",\"\",IF('Timeliness Quarterly'!H$17<'Timeliness Quarterly'!$D$15,'Timeliness Quarterly'!H$17,\"\"))","v":""},{"$f":"IF(IFERROR('Timeliness Quarterly'!$O$15,\"error\")=\"error\",\"\",IF('Timeliness Quarterly'!$O$15=0,\"\",'Timeliness Quarterly'!$O$15))","v":""},{"$f":"IF(IFERROR('Timeliness Quarterly'!$P$15,\"error\")=\"error\",\"\",IF('Timeliness Quarterly'!$P$15=0,\"\",'Timeliness Quarterly'!$P$15))","v":""}]
[null,{"$f":"'Timeliness Quarterly'!$I$10","v":"7/1/15 - 9/30/15"},{"$f":"'Timeliness Quarterly'!$D$15","v":0.8},{"$f":"'Timeliness Quarterly'!$E$15","v":3},{"$f":"IF(IFERROR('Timeliness Quarterly'!I$17,\"error\")=\"error\",\"\",IF('Timeliness Quarterly'!I$17<'Timeliness Quarterly'!$D$15,'Timeliness Quarterly'!I$17,\"\"))","v":""},{"$f":"IF(IFERROR('Timeliness Quarterly'!$Q$15,\"error\")=\"error\",\"\",IF('Timeliness Quarterly'!$Q$15=0,\"\",'Timeliness Quarterly'!$Q$15))","v":""},{"$f":"IF(IFERROR('Timeliness Quarterly'!$R$15,\"error\")=\"error\",\"\",IF('Timeliness Quarterly'!$R$15=0,\"\",'Timeliness Quarterly'!$R$15))","v":""}]
["Juvenile Delinquency",{"$f":"'Timeliness Quarterly'!$F$10","v":"10/1/14 - 12/31/14"},{"$f":"'Timeliness Quarterly'!$D$18","v":0.8},{"$f":"'Timeliness Quarterly'!$E$18","v":2},{"$f":"IF(IFERROR('Timeliness Quarterly'!F$20,\"error\")=\"error\",\"\",IF('Timeliness Quarterly'!F$20<'Timeliness Quarterly'!$D$18,'Timeliness Quarterly'!F$20,\"\"))","v":""},{"$f":"IF(IFERROR('Timeliness Quarterly'!$K$18,\"error\")=\"error\",\"\",IF('Timeliness Quarterly'!$K$18=0,\"\",'Timeliness Quarterly'!$K$18))","v":""},{"$f":"IF(IFERROR('Timeliness Quarterly'!$L$18,\"error\")=\"error\",\"\",IF('Timeliness Quarterly'!$L$18=0,\"\",'Timeliness Quarterly'!$L$18))","v":""}]
[null,{"$f":"'Timeliness Quarterly'!$G$10","v":"1/1/15 - 3/31/15"},{"$f":"'Timeliness Quarterly'!$D$18","v":0.8},{"$f":"'Timeliness Quarterly'!$E$18","v":2},{"$f":"IF(IFERROR('Timeliness Quarterly'!G$20,\"error\")=\"error\",\"\",IF('Timeliness Quarterly'!G$20<'Timeliness Quarterly'!$D$18,'Timeliness Quarterly'!G$20,\"\"))","v":""},{"$f":"IF(IFERROR('Timeliness Quarterly'!$M$18,\"error\")=\"error\",\"\",IF('Timeliness Quarterly'!$M$18=0,\"\",'Timeliness Quarterly'!$M$18))","v":""},{"$f":"IF(IFERROR('Timeliness Quarterly'!$N$18,\"error\")=\"error\",\"\",IF('Timeliness Quarterly'!$N$18=0,\"\",'Timeliness Quarterly'!$N$18))","v":""}]
[null,{"$f":"'Timeliness Quarterly'!$H$10","v":"4/1/15 - 6/30/15"},{"$f":"'Timeliness Quarterly'!$D$18","v":0.8},{"$f":"'Timeliness Quarterly'!$E$18","v":2},{"$f":"IF(IFERROR('Timeliness Quarterly'!H$20,\"error\")=\"error\",\"\",IF('Timeliness Quarterly'!H$20<'Timeliness Quarterly'!$D$18,'Timeliness Quarterly'!H$20,\"\"))","v":""},{"$f":"IF(IFERROR('Timeliness Quarterly'!$O$18,\"error\")=\"error\",\"\",IF('Timeliness Quarterly'!$O$18=0,\"\",'Timeliness Quarterly'!$O$18))","v":""},{"$f":"IF(IFERROR('Timeliness Quarterly'!$P$18,\"error\")=\"error\",\"\",IF('Timeliness Quarterly'!$P$18=0,\"\",'Timeliness Quarterly'!$P$18))","v":""}]
[null,{"$f":"'Timeliness Quarterly'!$I$10","v":"7/1/15 - 9/30/15"},{"$f":"'Timeliness Quarterly'!$D$18","v":0.8},{"$f":"'Timeliness Quarterly'!$E$18","v":2},{"$f":"IF(IFERROR('Timeliness Quarterly'!I$20,\"error\")=\"error\",\"\",IF('Timeliness Quarterly'!I$20<'Timeliness Quarterly'!$D$18,'Timeliness Quarterly'!I$20,\"\"))","v":""},{"$f":"IF(IFERROR('Timeliness Quarterly'!$Q$18,\"error\")=\"error\",\"\",IF('Timeliness Quarterly'!$Q$18=0,\"\",'Timeliness Quarterly'!$Q$18))","v":""},{"$f":"IF(IFERROR('Timeliness Quarterly'!$R$18,\"error\")=\"error\",\"\",IF('Timeliness Quarterly'!$R$18=0,\"\",'Timeliness Quarterly'!$R$18))","v":""}]
["Criminal Traffic",{"$f":"'Timeliness Quarterly'!$F$10","v":"10/1/14 - 12/31/14"},{"$f":"'Timeliness Quarterly'!$D$21","v":0.8},{"$f":"'Timeliness Quarterly'!$E$21","v":3},{"$f":"IF(IFERROR('Timeliness Quarterly'!F$23,\"error\")=\"error\",\"\",IF('Timeliness Quarterly'!F$23<'Timeliness Quarterly'!$D$21,'Timeliness Quarterly'!F$23,\"\"))","v":""},{"$f":"IF(IFERROR('Timeliness Quarterly'!$K$21,\"error\")=\"error\",\"\",IF('Timeliness Quarterly'!$K$21=0,\"\",'Timeliness Quarterly'!$K$21))","v":""},{"$f":"IF(IFERROR('Timeliness Quarterly'!$L$21,\"error\")=\"error\",\"\",IF('Timeliness Quarterly'!$L$21=0,\"\",'Timeliness Quarterly'!$L$21))","v":""}]
[null,{"$f":"'Timeliness Quarterly'!$G$10","v":"1/1/15 - 3/31/15"},{"$f":"'Timeliness Quarterly'!$D$21","v":0.8},{"$f":"'Timeliness Quarterly'!$E$21","v":3},{"$f":"IF(IFERROR('Timeliness Quarterly'!G$23,\"error\")=\"error\",\"\",IF('Timeliness Quarterly'!G$23<'Timeliness Quarterly'!$D$21,'Timeliness Quarterly'!G$23,\"\"))","v":""},{"$f":"IF(IFERROR('Timeliness Quarterly'!$M$21,\"error\")=\"error\",\"\",IF('Timeliness Quarterly'!$M$21=0,\"\",'Timeliness Quarterly'!$M$21))","v":""},{"$f":"IF(IFERROR('Timeliness Quarterly'!$N$21,\"error\")=\"error\",\"\",IF('Timeliness Quarterly'!$N$21=0,\"\",'Timeliness Quarterly'!$N$21))","v":""}]
[null,{"$f":"'Timeliness Quarterly'!$H$10","v":"4/1/15 - 6/30/15"},{"$f":"'Timeliness Quarterly'!$D$21","v":0.8},{"$f":"'Timeliness Quarterly'!$E$21","v":3},{"$f":"IF(IFERROR('Timeliness Quarterly'!H$23,\"error\")=\"error\",\"\",IF('Timeliness Quarterly'!H$23<'Timeliness Quarterly'!$D$21,'Timeliness Quarterly'!H$23,\"\"))","v":""},{"$f":"IF(IFERROR('Timeliness Quarterly'!$O$21,\"error\")=\"error\",\"\",IF('Timeliness Quarterly'!$O$21=0,\"\",'Timeliness Quarterly'!$O$21))","v":""},{"$f":"IF(IFERROR('Timeliness Quarterly'!$P$21,\"error\")=\"error\",\"\",IF('Timeliness Quarterly'!$P$21=0,\"\",'Timeliness Quarterly'!$P$21))","v":""}]
[null,{"$f":"'Timeliness Quarterly'!$I$10","v":"7/1/15 - 9/30/15"},{"$f":"'Timeliness Quarterly'!$D$21","v":0.8},{"$f":"'Timeliness Quarterly'!$E$21","v":3},{"$f":"IF(IFERROR('Timeliness Quarterly'!I$23,\"error\")=\"error\",\"\",IF('Timeliness Quarterly'!I$23<'Timeliness Quarterly'!$D$21,'Timeliness Quarterly'!I$23,\"\"))","v":""},{"$f":"IF(IFERROR('Timeliness Quarterly'!$Q$21,\"error\")=\"error\",\"\",IF('Timeliness Quarterly'!$Q$21=0,\"\",'Timeliness Quarterly'!$Q$21))","v":""},{"$f":"IF(IFERROR('Timeliness Quarterly'!$R$21,\"error\")=\"error\",\"\",IF('Timeliness Quarterly'!$R$21=0,\"\",'Timeliness Quarterly'!$R$21))","v":""}]
["Circuit Civil",{"$f":"'Timeliness Quarterly'!$F$10","v":"10/1/14 - 12/31/14"},{"$f":"'Timeliness Quarterly'!$D$25","v":0.8},{"$f":"'Timeliness Quarterly'!$E$25","v":2},{"$f":"IF(IFERROR('Timeliness Quarterly'!F$27,\"error\")=\"error\",\"\",IF('Timeliness Quarterly'!F$27<'Timeliness Quarterly'!$D$25,'Timeliness Quarterly'!F$27,\"\"))","v":""},{"$f":"IF(IFERROR('Timeliness Quarterly'!$K$25,\"error\")=\"error\",\"\",IF('Timeliness Quarterly'!$K$25=0,\"\",'Timeliness Quarterly'!$K$25))","v":""},{"$f":"IF(IFERROR('Timeliness Quarterly'!$L$25,\"error\")=\"error\",\"\",IF('Timeliness Quarterly'!$L$25=0,\"\",'Timeliness Quarterly'!$L$25))","v":""}]
[null,{"$f":"'Timeliness Quarterly'!$G$10","v":"1/1/15 - 3/31/15"},{"$f":"'Timeliness Quarterly'!$D$25","v":0.8},{"$f":"'Timeliness Quarterly'!$E$25","v":2},{"$f":"IF(IFERROR('Timeliness Quarterly'!G$27,\"error\")=\"error\",\"\",IF('Timeliness Quarterly'!G$27<'Timeliness Quarterly'!$D$25,'Timeliness Quarterly'!G$27,\"\"))","v":""},{"$f":"IF(IFERROR('Timeliness Quarterly'!$M$25,\"error\")=\"error\",\"\",IF('Timeliness Quarterly'!$M$25=0,\"\",'Timeliness Quarterly'!$M$25))","v":""},{"$f":"IF(IFERROR('Timeliness Quarterly'!$N$25,\"error\")=\"error\",\"\",IF('Timeliness Quarterly'!$N$25=0,\"\",'Timeliness Quarterly'!$N$25))","v":""}]
[null,{"$f":"'Timeliness Quarterly'!$H$10","v":"4/1/15 - 6/30/15"},{"$f":"'Timeliness Quarterly'!$D$25","v":0.8},{"$f":"'Timeliness Quarterly'!$E$25","v":2},{"$f":"IF(IFERROR('Timeliness Quarterly'!H$27,\"error\")=\"error\",\"\",IF('Timeliness Quarterly'!H$27<'Timeliness Quarterly'!$D$25,'Timeliness Quarterly'!H$27,\"\"))","v":""},{"$f":"IF(IFERROR('Timeliness Quarterly'!$O$25,\"error\")=\"error\",\"\",IF('Timeliness Quarterly'!$O$25=0,\"\",'Timeliness Quarterly'!$O$25))","v":""},{"$f":"IF(IFERROR('Timeliness Quarterly'!$P$25,\"error\")=\"error\",\"\",IF('Timeliness Quarterly'!$P$25=0,\"\",'Timeliness Quarterly'!$P$25))","v":""}]
[null,{"$f":"'Timeliness Quarterly'!$I$10","v":"7/1/15 - 9/30/15"},{"$f":"'Timeliness Quarterly'!$D$25","v":0.8},{"$f":"'Timeliness Quarterly'!$E$25","v":2},{"$f":"IF(IFERROR('Timeliness Quarterly'!I$27,\"error\")=\"error\",\"\",IF('Timeliness Quarterly'!I$27<'Timeliness Quarterly'!$D$25,'Timeliness Quarterly'!I$27,\"\"))","v":""},{"$f":"IF(IFERROR('Timeliness Quarterly'!$Q$25,\"error\")=\"error\",\"\",IF('Timeliness Quarterly'!$Q$25=0,\"\",'Timeliness Quarterly'!$Q$25))","v":""},{"$f":"IF(IFERROR('Timeliness Quarterly'!$R$25,\"error\")=\"error\",\"\",IF('Timeliness Quarterly'!$R$25=0,\"\",'Timeliness Quarterly'!$R$25))","v":""}]
["County Civil",{"$f":"'Timeliness Quarterly'!$F$10","v":"10/1/14 - 12/31/14"},{"$f":"'Timeliness Quarterly'!$D$28","v":0.8},{"$f":"'Timeliness Quarterly'!$E$28","v":2},{"$f":"IF(IFERROR('Timeliness Quarterly'!F$30,\"error\")=\"error\",\"\",IF('Timeliness Quarterly'!F$30<'Timeliness Quarterly'!$D$28,'Timeliness Quarterly'!F$30,\"\"))","v":""},{"$f":"IF(IFERROR('Timeliness Quarterly'!$K$28,\"error\")=\"error\",\"\",IF('Timeliness Quarterly'!$K$28=0,\"\",'Timeliness Quarterly'!$K$28))","v":""},{"$f":"IF(IFERROR('Timeliness Quarterly'!$L$28,\"error\")=\"error\",\"\",IF('Timeliness Quarterly'!$L$28=0,\"\",'Timeliness Quarterly'!$L$28))","v":""}]
[null,{"$f":"'Timeliness Quarterly'!$G$10","v":"1/1/15 - 3/31/15"},{"$f":"'Timeliness Quarterly'!$D$28","v":0.8},{"$f":"'Timeliness Quarterly'!$E$28","v":2},{"$f":"IF(IFERROR('Timeliness Quarterly'!G$30,\"error\")=\"error\",\"\",IF('Timeliness Quarterly'!G$30<'Timeliness Quarterly'!$D$28,'Timeliness Quarterly'!G$30,\"\"))","v":""},{"$f":"IF(IFERROR('Timeliness Quarterly'!$M$28,\"error\")=\"error\",\"\",IF('Timeliness Quarterly'!$M$28=0,\"\",'Timeliness Quarterly'!$M$28))","v":""},{"$f":"IF(IFERROR('Timeliness Quarterly'!$N$28,\"error\")=\"error\",\"\",IF('Timeliness Quarterly'!$N$28=0,\"\",'Timeliness Quarterly'!$N$28))","v":""}]
[null,{"$f":"'Timeliness Quarterly'!$H$10","v":"4/1/15 - 6/30/15"},{"$f":"'Timeliness Quarterly'!$D$28","v":0.8},{"$f":"'Timeliness Quarterly'!$E$28","v":2},{"$f":"IF(IFERROR('Timeliness Quarterly'!H$30,\"error\")=\"error\",\"\",IF('Timeliness Quarterly'!H$30<'Timeliness Quarterly'!$D$28,'Timeliness Quarterly'!H$30,\"\"))","v":""},{"$f":"IF(IFERROR('Timeliness Quarterly'!$O$28,\"error\")=\"error\",\"\",IF('Timeliness Quarterly'!$O$28=0,\"\",'Timeliness Quarterly'!$O$28))","v":""},{"$f":"IF(IFERROR('Timeliness Quarterly'!$P$28,\"error\")=\"error\",\"\",IF('Timeliness Quarterly'!$P$28=0,\"\",'Timeliness Quarterly'!$P$28))","v":""}]
[null,{"$f":"'Timeliness Quarterly'!$I$10","v":"7/1/15 - 9/30/15"},{"$f":"'Timeliness Quarterly'!$D$28","v":0.8},{"$f":"'Timeliness Quarterly'!$E$28","v":2},{"$f":"IF(IFERROR('Timeliness Quarterly'!I$30,\"error\")=\"error\",\"\",IF('Timeliness Quarterly'!I$30<'Timeliness Quarterly'!$D$28,'Timeliness Quarterly'!I$30,\"\"))","v":""},{"$f":"IF(IFERROR('Timeliness Quarterly'!$Q$28,\"error\")=\"error\",\"\",IF('Timeliness Quarterly'!$Q$28=0,\"\",'Timeliness Quarterly'!$Q$28))","v":""},{"$f":"IF(IFERROR('Timeliness Quarterly'!$R$28,\"error\")=\"error\",\"\",IF('Timeliness Quarterly'!$R$28=0,\"\",'Timeliness Quarterly'!$R$28))","v":""}]
["Civil Traffic",{"$f":"'Timeliness Quarterly'!$F$10","v":"10/1/14 - 12/31/14"},{"$f":"'Timeliness Quarterly'!$D$31","v":0.8},{"$f":"'Timeliness Quarterly'!$E$31","v":4},{"$f":"IF(IFERROR('Timeliness Quarterly'!F$33,\"error\")=\"error\",\"\",IF('Timeliness Quarterly'!F$33<'Timeliness Quarterly'!$D$31,'Timeliness Quarterly'!F$33,\"\"))","v":""},{"$f":"IF(IFERROR('Timeliness Quarterly'!$K$31,\"error\")=\"error\",\"\",IF('Timeliness Quarterly'!$K$31=0,\"\",'Timeliness Quarterly'!$K$31))","v":""},{"$f":"IF(IFERROR('Timeliness Quarterly'!$L$31,\"error\")=\"error\",\"\",IF('Timeliness Quarterly'!$L$31=0,\"\",'Timeliness Quarterly'!$L$31))","v":""}]
[null,{"$f":"'Timeliness Quarterly'!$G$10","v":"1/1/15 - 3/31/15"},{"$f":"'Timeliness Quarterly'!$D$31","v":0.8},{"$f":"'Timeliness Quarterly'!$E$31","v":4},{"$f":"IF(IFERROR('Timeliness Quarterly'!G$33,\"error\")=\"error\",\"\",IF('Timeliness Quarterly'!G$33<'Timeliness Quarterly'!$D$31,'Timeliness Quarterly'!G$33,\"\"))","v":""},{"$f":"IF(IFERROR('Timeliness Quarterly'!$M$31,\"error\")=\"error\",\"\",IF('Timeliness Quarterly'!$M$31=0,\"\",'Timeliness Quarterly'!$M$31))","v":""},{"$f":"IF(IFERROR('Timeliness Quarterly'!$N$31,\"error\")=\"error\",\"\",IF('Timeliness Quarterly'!$N$31=0,\"\",'Timeliness Quarterly'!$N$31))","v":""}]
[null,{"$f":"'Timeliness Quarterly'!$H$10","v":"4/1/15 - 6/30/15"},{"$f":"'Timeliness Quarterly'!$D$31","v":0.8},{"$f":"'Timeliness Quarterly'!$E$31","v":4},{"$f":"IF(IFERROR('Timeliness Quarterly'!H$33,\"error\")=\"error\",\"\",IF('Timeliness Quarterly'!H$33<'Timeliness Quarterly'!$D$31,'Timeliness Quarterly'!H$33,\"\"))","v":""},{"$f":"IF(IFERROR('Timeliness Quarterly'!$O$31,\"error\")=\"error\",\"\",IF('Timeliness Quarterly'!$O$31=0,\"\",'Timeliness Quarterly'!$O$31))","v":""},{"$f":"IF(IFERROR('Timeliness Quarterly'!$P$31,\"error\")=\"error\",\"\",IF('Timeliness Quarterly'!$P$31=0,\"\",'Timeliness Quarterly'!$P$31))","v":""}]
[null,{"$f":"'Timeliness Quarterly'!$I$10","v":"7/1/15 - 9/30/15"},{"$f":"'Timeliness Quarterly'!$D$31","v":0.8},{"$f":"'Timeliness Quarterly'!$E$31","v":4},{"$f":"IF(IFERROR('Timeliness Quarterly'!I$33,\"error\")=\"error\",\"\",IF('Timeliness Quarterly'!I$33<'Timeliness Quarterly'!$D$31,'Timeliness Quarterly'!I$33,\"\"))","v":""},{"$f":"IF(IFERROR('Timeliness Quarterly'!$Q$31,\"error\")=\"error\",\"\",IF('Timeliness Quarterly'!$Q$31=0,\"\",'Timeliness Quarterly'!$Q$31))","v":""},{"$f":"IF(IFERROR('Timeliness Quarterly'!$R$31,\"error\")=\"error\",\"\",IF('Timeliness Quarterly'!$R$31=0,\"\",'Timeliness Quarterly'!$R$31))","v":""}]
["Probate",{"$f":"'Timeliness Quarterly'!$F$10","v":"10/1/14 - 12/31/14"},{"$f":"'Timeliness Quarterly'!$D$34","v":0.8},{"$f":"'Timeliness Quarterly'!$E$34","v":2},{"$f":"IF(IFERROR('Timeliness Quarterly'!F$36,\"error\")=\"error\",\"\",IF('Timeliness Quarterly'!F$36<'Timeliness Quarterly'!$D$34,'Timeliness Quarterly'!F$36,\"\"))","v":""},{"$f":"IF(IFERROR('Timeliness Quarterly'!$K$34,\"error\")=\"error\",\"\",IF('Timeliness Quarterly'!$K$34=0,\"\",'Timeliness Quarterly'!$K$34))","v":""},{"$f":"IF(IFERROR('Timeliness Quarterly'!$L$34,\"error\")=\"error\",\"\",IF('Timeliness Quarterly'!$L$34=0,\"\",'Timeliness Quarterly'!$L$34))","v":""}]
[null,{"$f":"'Timeliness Quarterly'!$G$10","v":"1/1/15 - 3/31/15"},{"$f":"'Timeliness Quarterly'!$D$34","v":0.8},{"$f":"'Timeliness Quarterly'!$E$34","v":2},{"$f":"IF(IFERROR('Timeliness Quarterly'!G$36,\"error\")=\"error\",\"\",IF('Timeliness Quarterly'!G$36<'Timeliness Quarterly'!$D$34,'Timeliness Quarterly'!G$36,\"\"))","v":""},{"$f":"IF(IFERROR('Timeliness Quarterly'!$M$34,\"error\")=\"error\",\"\",IF('Timeliness Quarterly'!$M$34=0,\"\",'Timeliness Quarterly'!$M$34))","v":""},{"$f":"IF(IFERROR('Timeliness Quarterly'!$N$34,\"error\")=\"error\",\"\",IF('Timeliness Quarterly'!$N$34=0,\"\",'Timeliness Quarterly'!$N$34))","v":""}]
[null,{"$f":"'Timeliness Quarterly'!$H$10","v":"4/1/15 - 6/30/15"},{"$f":"'Timeliness Quarterly'!$D$34","v":0.8},{"$f":"'Timeliness Quarterly'!$E$34","v":2},{"$f":"IF(IFERROR('Timeliness Quarterly'!H$36,\"error\")=\"error\",\"\",IF('Timeliness Quarterly'!H$36<'Timeliness Quarterly'!$D$34,'Timeliness Quarterly'!H$36,\"\"))","v":""},{"$f":"IF(IFERROR('Timeliness Quarterly'!$O$34,\"error\")=\"error\",\"\",IF('Timeliness Quarterly'!$O$34=0,\"\",'Timeliness Quarterly'!$O$34))","v":""},{"$f":"IF(IFERROR('Timeliness Quarterly'!$P$34,\"error\")=\"error\",\"\",IF('Timeliness Quarterly'!$P$34=0,\"\",'Timeliness Quarterly'!$P$34))","v":""}]
[null,{"$f":"'Timeliness Quarterly'!$I$10","v":"7/1/15 - 9/30/15"},{"$f":"'Timeliness Quarterly'!$D$34","v":0.8},{"$f":"'Timeliness Quarterly'!$E$34","v":2},{"$f":"IF(IFERROR('Timeliness Quarterly'!I$36,\"error\")=\"error\",\"\",IF('Timeliness Quarterly'!I$36<'Timeliness Quarterly'!$D$34,'Timeliness Quarterly'!I$36,\"\"))","v":""},{"$f":"IF(IFERROR('Timeliness Quarterly'!$Q$34,\"error\")=\"error\",\"\",IF('Timeliness Quarterly'!$Q$34=0,\"\",'Timeliness Quarterly'!$Q$34))","v":""},{"$f":"IF(IFERROR('Timeliness Quarterly'!$R$34,\"error\")=\"error\",\"\",IF('Timeliness Quarterly'!$R$34=0,\"\",'Timeliness Quarterly'!$R$34))","v":""}]
["Family",{"$f":"'Timeliness Quarterly'!$F$10","v":"10/1/14 - 12/31/14"},{"$f":"'Timeliness Quarterly'!$D$37","v":0.8},{"$f":"'Timeliness Quarterly'!$E$37","v":3},{"$f":"IF(IFERROR('Timeliness Quarterly'!F$39,\"error\")=\"error\",\"\",IF('Timeliness Quarterly'!F$39<'Timeliness Quarterly'!$D$37,'Timeliness Quarterly'!F$39,\"\"))","v":""},{"$f":"IF(IFERROR('Timeliness Quarterly'!$K$37,\"error\")=\"error\",\"\",IF('Timeliness Quarterly'!$K$37=0,\"\",'Timeliness Quarterly'!$K$37))","v":""},{"$f":"IF(IFERROR('Timeliness Quarterly'!$L$37,\"error\")=\"error\",\"\",IF('Timeliness Quarterly'!$L$37=0,\"\",'Timeliness Quarterly'!$L$37))","v":""}]
[null,{"$f":"'Timeliness Quarterly'!$G$10","v":"1/1/15 - 3/31/15"},{"$f":"'Timeliness Quarterly'!$D$37","v":0.8},{"$f":"'Timeliness Quarterly'!$E$37","v":3},{"$f":"IF(IFERROR('Timeliness Quarterly'!G$39,\"error\")=\"error\",\"\",IF('Timeliness Quarterly'!G$39<'Timeliness Quarterly'!$D$37,'Timeliness Quarterly'!G$39,\"\"))","v":""},{"$f":"IF(IFERROR('Timeliness Quarterly'!$M$37,\"error\")=\"error\",\"\",IF('Timeliness Quarterly'!$M$37=0,\"\",'Timeliness Quarterly'!$M$37))","v":""},{"$f":"IF(IFERROR('Timeliness Quarterly'!$N$37,\"error\")=\"error\",\"\",IF('Timeliness Quarterly'!$N$37=0,\"\",'Timeliness Quarterly'!$N$37))","v":""}]
[null,{"$f":"'Timeliness Quarterly'!$H$10","v":"4/1/15 - 6/30/15"},{"$f":"'Timeliness Quarterly'!$D$37","v":0.8},{"$f":"'Timeliness Quarterly'!$E$37","v":3},{"$f":"IF(IFERROR('Timeliness Quarterly'!H$39,\"error\")=\"error\",\"\",IF('Timeliness Quarterly'!H$39<'Timeliness Quarterly'!$D$37,'Timeliness Quarterly'!H$39,\"\"))","v":""},{"$f":"IF(IFERROR('Timeliness Quarterly'!$O$37,\"error\")=\"error\",\"\",IF('Timeliness Quarterly'!$O$37=0,\"\",'Timeliness Quarterly'!$O$37))","v":""},{"$f":"IF(IFERROR('Timeliness Quarterly'!$P$37,\"error\")=\"error\",\"\",IF('Timeliness Quarterly'!$P$37=0,\"\",'Timeliness Quarterly'!$P$37))","v":""}]
[null,{"$f":"'Timeliness Quarterly'!$I$10","v":"7/1/15 - 9/30/15"},{"$f":"'Timeliness Quarterly'!$D$37","v":0.8},{"$f":"'Timeliness Quarterly'!$E$37","v":3},{"$f":"IF(IFERROR('Timeliness Quarterly'!I$39,\"error\")=\"error\",\"\",IF('Timeliness Quarterly'!I$39<'Timeliness Quarterly'!$D$37,'Timeliness Quarterly'!I$39,\"\"))","v":""},{"$f":"IF(IFERROR('Timeliness Quarterly'!$Q$37,\"error\")=\"error\",\"\",IF('Timeliness Quarterly'!$Q$37=0,\"\",'Timeliness Quarterly'!$Q$37))","v":""},{"$f":"IF(IFERROR('Timeliness Quarterly'!$R$37,\"error\")=\"error\",\"\",IF('Timeliness Quarterly'!$R$37=0,\"\",'Timeliness Quarterly'!$R$37))","v":""}]
["Juvenile Dependency",{"$f":"'Timeliness Quarterly'!$F$10","v":"10/1/14 - 12/31/14"},{"$f":"'Timeliness Quarterly'!$D$40","v":0.8},{"$f":"'Timeliness Quarterly'!$E$40","v":2},{"$f":"IF(IFERROR('Timeliness Quarterly'!F$42,\"error\")=\"error\",\"\",IF('Timeliness Quarterly'!F$42<'Timeliness Quarterly'!$D$40,'Timeliness Quarterly'!F$42,\"\"))","v":""},{"$f":"IF(IFERROR('Timeliness Quarterly'!$K$40,\"error\")=\"error\",\"\",IF('Timeliness Quarterly'!$K$40=0,\"\",'Timeliness Quarterly'!$K$40))","v":""},{"$f":"IF(IFERROR('Timeliness Quarterly'!$L$40,\"error\")=\"error\",\"\",IF('Timeliness Quarterly'!$L$40=0,\"\",'Timeliness Quarterly'!$L$40))","v":""}]
[null,{"$f":"'Timeliness Quarterly'!$G$10","v":"1/1/15 - 3/31/15"},{"$f":"'Timeliness Quarterly'!$D$40","v":0.8},{"$f":"'Timeliness Quarterly'!$E$40","v":2},{"$f":"IF(IFERROR('Timeliness Quarterly'!G$42,\"error\")=\"error\",\"\",IF('Timeliness Quarterly'!G$42<'Timeliness Quarterly'!$D$40,'Timeliness Quarterly'!G$42,\"\"))","v":""},{"$f":"IF(IFERROR('Timeliness Quarterly'!$M$40,\"error\")=\"error\",\"\",IF('Timeliness Quarterly'!$M$40=0,\"\",'Timeliness Quarterly'!$M$40))","v":""},{"$f":"IF(IFERROR('Timeliness Quarterly'!$N$40,\"error\")=\"error\",\"\",IF('Timeliness Quarterly'!$N$40=0,\"\",'Timeliness Quarterly'!$N$40))","v":""}]
[null,{"$f":"'Timeliness Quarterly'!$H$10","v":"4/1/15 - 6/30/15"},{"$f":"'Timeliness Quarterly'!$D$40","v":0.8},{"$f":"'Timeliness Quarterly'!$E$40","v":2},{"$f":"IF(IFERROR('Timeliness Quarterly'!H$42,\"error\")=\"error\",\"\",IF('Timeliness Quarterly'!H$42<'Timeliness Quarterly'!$D$40,'Timeliness Quarterly'!H$42,\"\"))","v":""},{"$f":"IF(IFERROR('Timeliness Quarterly'!$O$40,\"error\")=\"error\",\"\",IF('Timeliness Quarterly'!$O$40=0,\"\",'Timeliness Quarterly'!$O$40))","v":""},{"$f":"IF(IFERROR('Timeliness Quarterly'!$P$40,\"error\")=\"error\",\"\",IF('Timeliness Quarterly'!$P$40=0,\"\",'Timeliness Quarterly'!$P$40))","v":""}]
[null,{"$f":"'Timeliness Quarterly'!$I$10","v":"7/1/15 - 9/30/15"},{"$f":"'Timeliness Quarterly'!$D$40","v":0.8},{"$f":"'Timeliness Quarterly'!$E$40","v":2},{"$f":"IF(IFERROR('Timeliness Quarterly'!I$42,\"error\")=\"error\",\"\",IF('Timeliness Quarterly'!I$42<'Timeliness Quarterly'!$D$40,'Timeliness Quarterly'!I$42,\"\"))","v":""},{"$f":"IF(IFERROR('Timeliness Quarterly'!$Q$40,\"error\")=\"error\",\"\",IF('Timeliness Quarterly'!$Q$40=0,\"\",'Timeliness Quarterly'!$Q$40))","v":""},{"$f":"IF(IFERROR('Timeliness Quarterly'!$R$40,\"error\")=\"error\",\"\",IF('Timeliness Quarterly'!$R$40=0,\"\",'Timeliness Quarterly'!$R$40))","v":""}]
[]
[]
[" \nTimeliness Measeure # 2","Quarter","CCOC Standard",{"$f":"'Timeliness Quarterly'!E46","v":"# of business days"},"Clerk Performance","Reason Code","Current Actions to Improve"]
["Circuit Criminal",{"$f":"'Timeliness Quarterly'!$F$46","v":"10/1/14 - 12/31/14"},{"$f":"'Timeliness Quarterly'!$D$48","v":0.8},{"$f":"'Timeliness Quarterly'!$E$48","v":3},{"$f":"IF(IFERROR('Timeliness Quarterly'!F$50,\"error\")=\"error\",\"\",IF('Timeliness Quarterly'!F$50<'Timeliness Quarterly'!$D$48,'Timeliness Quarterly'!F$50,\"\"))","v":""},{"$f":"IF(IFERROR('Timeliness Quarterly'!$K$48,\"error\")=\"error\",\"\",IF('Timeliness Quarterly'!$K$48=0,\"\",'Timeliness Quarterly'!$K$48))","v":""},{"$f":"IF(IFERROR('Timeliness Quarterly'!$L$48,\"error\")=\"error\",\"\",IF('Timeliness Quarterly'!$L$48=0,\"\",'Timeliness Quarterly'!$L$48))","v":""}]
[null,{"$f":"'Timeliness Quarterly'!$G$46","v":"1/1/15 - 3/31/15"},{"$f":"'Timeliness Quarterly'!$D$48","v":0.8},{"$f":"'Timeliness Quarterly'!$E$48","v":3},{"$f":"IF(IFERROR('Timeliness Quarterly'!G$50,\"error\")=\"error\",\"\",IF('Timeliness Quarterly'!G$50<'Timeliness Quarterly'!$D$48,'Timeliness Quarterly'!G$50,\"\"))","v":""},{"$f":"IF(IFERROR('Timeliness Quarterly'!$M$48,\"error\")=\"error\",\"\",IF('Timeliness Quarterly'!$M$48=0,\"\",'Timeliness Quarterly'!$M$48))","v":""},{"$f":"IF(IFERROR('Timeliness Quarterly'!$N$48,\"error\")=\"error\",\"\",IF('Timeliness Quarterly'!$N$48=0,\"\",'Timeliness Quarterly'!$N$48))","v":""}]
[null,{"$f":"'Timeliness Quarterly'!$H$46","v":"4/1/15 - 6/30/15"},{"$f":"'Timeliness Quarterly'!$D$48","v":0.8},{"$f":"'Timeliness Quarterly'!$E$48","v":3},{"$f":"IF(IFERROR('Timeliness Quarterly'!H$50,\"error\")=\"error\",\"\",IF('Timeliness Quarterly'!H$50<'Timeliness Quarterly'!$D$48,'Timeliness Quarterly'!H$50,\"\"))","v":""},{"$f":"IF(IFERROR('Timeliness Quarterly'!$O$48,\"error\")=\"error\",\"\",IF('Timeliness Quarterly'!$O$48=0,\"\",'Timeliness Quarterly'!$O$48))","v":""},{"$f":"IF(IFERROR('Timeliness Quarterly'!$P$48,\"error\")=\"error\",\"\",IF('Timeliness Quarterly'!$P$48=0,\"\",'Timeliness Quarterly'!$P$48))","v":""}]
[null,{"$f":"'Timeliness Quarterly'!$I$46","v":"7/1/15 - 9/30/15"},{"$f":"'Timeliness Quarterly'!$D$48","v":0.8},{"$f":"'Timeliness Quarterly'!$E$48","v":3},{"$f":"IF(IFERROR('Timeliness Quarterly'!I$50,\"error\")=\"error\",\"\",IF('Timeliness Quarterly'!I$50<'Timeliness Quarterly'!$D$48,'Timeliness Quarterly'!I$50,\"\"))","v":""},{"$f":"IF(IFERROR('Timeliness Quarterly'!$Q$48,\"error\")=\"error\",\"\",IF('Timeliness Quarterly'!$Q$48=0,\"\",'Timeliness Quarterly'!$Q$48))","v":""},{"$f":"IF(IFERROR('Timeliness Quarterly'!$R$48,\"error\")=\"error\",\"\",IF('Timeliness Quarterly'!$R$48=0,\"\",'Timeliness Quarterly'!$R$48))","v":""}]
["County Criminal",{"$f":"'Timeliness Quarterly'!$F$46","v":"10/1/14 - 12/31/14"},{"$f":"'Timeliness Quarterly'!$D$51","v":0.8},{"$f":"'Timeliness Quarterly'!$E$51","v":3},{"$f":"IF(IFERROR('Timeliness Quarterly'!F$53,\"error\")=\"error\",\"\",IF('Timeliness Quarterly'!F$53<'Timeliness Quarterly'!$D$51,'Timeliness Quarterly'!F$53,\"\"))","v":""},{"$f":"IF(IFERROR('Timeliness Quarterly'!$K$51,\"error\")=\"error\",\"\",IF('Timeliness Quarterly'!$K$51=0,\"\",'Timeliness Quarterly'!$K$51))","v":""},{"$f":"IF(IFERROR('Timeliness Quarterly'!$L$51,\"error\")=\"error\",\"\",IF('Timeliness Quarterly'!$L$51=0,\"\",'Timeliness Quarterly'!$L$51))","v":""}]
[null,{"$f":"'Timeliness Quarterly'!$G$46","v":"1/1/15 - 3/31/15"},{"$f":"'Timeliness Quarterly'!$D$51","v":0.8},{"$f":"'Timeliness Quarterly'!$E$51","v":3},{"$f":"IF(IFERROR('Timeliness Quarterly'!G$53,\"error\")=\"error\",\"\",IF('Timeliness Quarterly'!G$53<'Timeliness Quarterly'!$D$51,'Timeliness Quarterly'!G$53,\"\"))","v":""},{"$f":"IF(IFERROR('Timeliness Quarterly'!$M$51,\"error\")=\"error\",\"\",IF('Timeliness Quarterly'!$M$51=0,\"\",'Timeliness Quarterly'!$M$51))","v":""},{"$f":"IF(IFERROR('Timeliness Quarterly'!$N$51,\"error\")=\"error\",\"\",IF('Timeliness Quarterly'!$N$51=0,\"\",'Timeliness Quarterly'!$N$51))","v":""}]
[null,{"$f":"'Timeliness Quarterly'!$H$46","v":"4/1/15 - 6/30/15"},{"$f":"'Timeliness Quarterly'!$D$51","v":0.8},{"$f":"'Timeliness Quarterly'!$E$51","v":3},{"$f":"IF(IFERROR('Timeliness Quarterly'!H$53,\"error\")=\"error\",\"\",IF('Timeliness Quarterly'!H$53<'Timeliness Quarterly'!$D$51,'Timeliness Quarterly'!H$53,\"\"))","v":""},{"$f":"IF(IFERROR('Timeliness Quarterly'!$O$51,\"error\")=\"error\",\"\",IF('Timeliness Quarterly'!$O$51=0,\"\",'Timeliness Quarterly'!$O$51))","v":""},{"$f":"IF(IFERROR('Timeliness Quarterly'!$P$51,\"error\")=\"error\",\"\",IF('Timeliness Quarterly'!$P$51=0,\"\",'Timeliness Quarterly'!$P$51))","v":""}]
[null,{"$f":"'Timeliness Quarterly'!$I$46","v":"7/1/15 - 9/30/15"},{"$f":"'Timeliness Quarterly'!$D$51","v":0.8},{"$f":"'Timeliness Quarterly'!$E$51","v":3},{"$f":"IF(IFERROR('Timeliness Quarterly'!I$53,\"error\")=\"error\",\"\",IF('Timeliness Quarterly'!I$53<'Timeliness Quarterly'!$D$51,'Timeliness Quarterly'!I$53,\"\"))","v":""},{"$f":"IF(IFERROR('Timeliness Quarterly'!$Q$51,\"error\")=\"error\",\"\",IF('Timeliness Quarterly'!$Q$51=0,\"\",'Timeliness Quarterly'!$Q$51))","v":""},{"$f":"IF(IFERROR('Timeliness Quarterly'!$R$51,\"error\")=\"error\",\"\",IF('Timeliness Quarterly'!$R$51=0,\"\",'Timeliness Quarterly'!$R$51))","v":""}]
["Juvenile Delinquency",{"$f":"'Timeliness Quarterly'!$F$46","v":"10/1/14 - 12/31/14"},{"$f":"'Timeliness Quarterly'!$D$54","v":0.8},{"$f":"'Timeliness Quarterly'!$E$54","v":3},{"$f":"IF(IFERROR('Timeliness Quarterly'!F$56,\"error\")=\"error\",\"\",IF('Timeliness Quarterly'!F$56<'Timeliness Quarterly'!$D$54,'Timeliness Quarterly'!F$56,\"\"))","v":""},{"$f":"IF(IFERROR('Timeliness Quarterly'!$K$54,\"error\")=\"error\",\"\",IF('Timeliness Quarterly'!$K$54=0,\"\",'Timeliness Quarterly'!$K$54))","v":""},{"$f":"IF(IFERROR('Timeliness Quarterly'!$L$54,\"error\")=\"error\",\"\",IF('Timeliness Quarterly'!$L$54=0,\"\",'Timeliness Quarterly'!$L$54))","v":""}]
[null,{"$f":"'Timeliness Quarterly'!$G$46","v":"1/1/15 - 3/31/15"},{"$f":"'Timeliness Quarterly'!$D$54","v":0.8},{"$f":"'Timeliness Quarterly'!$E$54","v":3},{"$f":"IF(IFERROR('Timeliness Quarterly'!G$56,\"error\")=\"error\",\"\",IF('Timeliness Quarterly'!G$56<'Timeliness Quarterly'!$D$54,'Timeliness Quarterly'!G$56,\"\"))","v":""},{"$f":"IF(IFERROR('Timeliness Quarterly'!$M$54,\"error\")=\"error\",\"\",IF('Timeliness Quarterly'!$M$54=0,\"\",'Timeliness Quarterly'!$M$54))","v":""},{"$f":"IF(IFERROR('Timeliness Quarterly'!$N$54,\"error\")=\"error\",\"\",IF('Timeliness Quarterly'!$N$54=0,\"\",'Timeliness Quarterly'!$N$54))","v":""}]
[null,{"$f":"'Timeliness Quarterly'!$H$46","v":"4/1/15 - 6/30/15"},{"$f":"'Timeliness Quarterly'!$D$54","v":0.8},{"$f":"'Timeliness Quarterly'!$E$54","v":3},{"$f":"IF(IFERROR('Timeliness Quarterly'!H$56,\"error\")=\"error\",\"\",IF('Timeliness Quarterly'!H$56<'Timeliness Quarterly'!$D$54,'Timeliness Quarterly'!H$56,\"\"))","v":""},{"$f":"IF(IFERROR('Timeliness Quarterly'!$O$54,\"error\")=\"error\",\"\",IF('Timeliness Quarterly'!$O$54=0,\"\",'Timeliness Quarterly'!$O$54))","v":""},{"$f":"IF(IFERROR('Timeliness Quarterly'!$P$54,\"error\")=\"error\",\"\",IF('Timeliness Quarterly'!$P$54=0,\"\",'Timeliness Quarterly'!$P$54))","v":""}]
[null,{"$f":"'Timeliness Quarterly'!$I$46","v":"7/1/15 - 9/30/15"},{"$f":"'Timeliness Quarterly'!$D$54","v":0.8},{"$f":"'Timeliness Quarterly'!$E$54","v":3},{"$f":"IF(IFERROR('Timeliness Quarterly'!I$56,\"error\")=\"error\",\"\",IF('Timeliness Quarterly'!I$56<'Timeliness Quarterly'!$D$54,'Timeliness Quarterly'!I$56,\"\"))","v":""},{"$f":"IF(IFERROR('Timeliness Quarterly'!$Q$54,\"error\")=\"error\",\"\",IF('Timeliness Quarterly'!$Q$54=0,\"\",'Timeliness Quarterly'!$Q$54))","v":""},{"$f":"IF(IFERROR('Timeliness Quarterly'!$R$54,\"error\")=\"error\",\"\",IF('Timeliness Quarterly'!$R$54=0,\"\",'Timeliness Quarterly'!$R$54))","v":""}]
["Criminal Traffic",{"$f":"'Timeliness Quarterly'!$F$46","v":"10/1/14 - 12/31/14"},{"$f":"'Timeliness Quarterly'!$D$57","v":0.8},{"$f":"'Timeliness Quarterly'!$E$57","v":3},{"$f":"IF(IFERROR('Timeliness Quarterly'!F$59,\"error\")=\"error\",\"\",IF('Timeliness Quarterly'!F$59<'Timeliness Quarterly'!$D$57,'Timeliness Quarterly'!F$59,\"\"))","v":""},{"$f":"IF(IFERROR('Timeliness Quarterly'!$K$57,\"error\")=\"error\",\"\",IF('Timeliness Quarterly'!$K$57=0,\"\",'Timeliness Quarterly'!$K$57))","v":""},{"$f":"IF(IFERROR('Timeliness Quarterly'!$L$57,\"error\")=\"error\",\"\",IF('Timeliness Quarterly'!$L$57=0,\"\",'Timeliness Quarterly'!$L$57))","v":""}]
[null,{"$f":"'Timeliness Quarterly'!$G$46","v":"1/1/15 - 3/31/15"},{"$f":"'Timeliness Quarterly'!$D$57","v":0.8},{"$f":"'Timeliness Quarterly'!$E$57","v":3},{"$f":"IF(IFERROR('Timeliness Quarterly'!G$59,\"error\")=\"error\",\"\",IF('Timeliness Quarterly'!G$59<'Timeliness Quarterly'!$D$57,'Timeliness Quarterly'!G$59,\"\"))","v":""},{"$f":"IF(IFERROR('Timeliness Quarterly'!$M$57,\"error\")=\"error\",\"\",IF('Timeliness Quarterly'!$M$57=0,\"\",'Timeliness Quarterly'!$M$57))","v":""},{"$f":"IF(IFERROR('Timeliness Quarterly'!$N$57,\"error\")=\"error\",\"\",IF('Timeliness Quarterly'!$N$57=0,\"\",'Timeliness Quarterly'!$N$57))","v":""}]
[null,{"$f":"'Timeliness Quarterly'!$H$46","v":"4/1/15 - 6/30/15"},{"$f":"'Timeliness Quarterly'!$D$57","v":0.8},{"$f":"'Timeliness Quarterly'!$E$57","v":3},{"$f":"IF(IFERROR('Timeliness Quarterly'!H$59,\"error\")=\"error\",\"\",IF('Timeliness Quarterly'!H$59<'Timeliness Quarterly'!$D$57,'Timeliness Quarterly'!H$59,\"\"))","v":""},{"$f":"IF(IFERROR('Timeliness Quarterly'!$O$57,\"error\")=\"error\",\"\",IF('Timeliness Quarterly'!$O$57=0,\"\",'Timeliness Quarterly'!$O$57))","v":""},{"$f":"IF(IFERROR('Timeliness Quarterly'!$P$57,\"error\")=\"error\",\"\",IF('Timeliness Quarterly'!$P$57=0,\"\",'Timeliness Quarterly'!$P$57))","v":""}]
[null,{"$f":"'Timeliness Quarterly'!$I$46","v":"7/1/15 - 9/30/15"},{"$f":"'Timeliness Quarterly'!$D$57","v":0.8},{"$f":"'Timeliness Quarterly'!$E$57","v":3},{"$f":"IF(IFERROR('Timeliness Quarterly'!I$59,\"error\")=\"error\",\"\",IF('Timeliness Quarterly'!I$59<'Timeliness Quarterly'!$D$57,'Timeliness Quarterly'!I$59,\"\"))","v":""},{"$f":"IF(IFERROR('Timeliness Quarterly'!$Q$57,\"error\")=\"error\",\"\",IF('Timeliness Quarterly'!$Q$57=0,\"\",'Timeliness Quarterly'!$Q$57))","v":""},{"$f":"IF(IFERROR('Timeliness Quarterly'!$R$57,\"error\")=\"error\",\"\",IF('Timeliness Quarterly'!$R$57=0,\"\",'Timeliness Quarterly'!$R$57))","v":""}]
["Circuit Civil",{"$f":"'Timeliness Quarterly'!$F$46","v":"10/1/14 - 12/31/14"},{"$f":"'Timeliness Quarterly'!$D$61","v":0.8},{"$f":"'Timeliness Quarterly'!$E$61","v":3},{"$f":"IF(IFERROR('Timeliness Quarterly'!F$63,\"error\")=\"error\",\"\",IF('Timeliness Quarterly'!F$63<'Timeliness Quarterly'!$D$61,'Timeliness Quarterly'!F$63,\"\"))","v":""},{"$f":"IF(IFERROR('Timeliness Quarterly'!$K$61,\"error\")=\"error\",\"\",IF('Timeliness Quarterly'!$K$61=0,\"\",'Timeliness Quarterly'!$K$61))","v":""},{"$f":"IF(IFERROR('Timeliness Quarterly'!$L$61,\"error\")=\"error\",\"\",IF('Timeliness Quarterly'!$L$61=0,\"\",'Timeliness Quarterly'!$L$61))","v":""}]
[null,{"$f":"'Timeliness Quarterly'!$G$46","v":"1/1/15 - 3/31/15"},{"$f":"'Timeliness Quarterly'!$D$61","v":0.8},{"$f":"'Timeliness Quarterly'!$E$61","v":3},{"$f":"IF(IFERROR('Timeliness Quarterly'!G$63,\"error\")=\"error\",\"\",IF('Timeliness Quarterly'!G$63<'Timeliness Quarterly'!$D$61,'Timeliness Quarterly'!G$63,\"\"))","v":""},{"$f":"IF(IFERROR('Timeliness Quarterly'!$M$61,\"error\")=\"error\",\"\",IF('Timeliness Quarterly'!$M$61=0,\"\",'Timeliness Quarterly'!$M$61))","v":""},{"$f":"IF(IFERROR('Timeliness Quarterly'!$N$61,\"error\")=\"error\",\"\",IF('Timeliness Quarterly'!$N$61=0,\"\",'Timeliness Quarterly'!$N$61))","v":""}]
[null,{"$f":"'Timeliness Quarterly'!$H$46","v":"4/1/15 - 6/30/15"},{"$f":"'Timeliness Quarterly'!$D$61","v":0.8},{"$f":"'Timeliness Quarterly'!$E$61","v":3},{"$f":"IF(IFERROR('Timeliness Quarterly'!H$63,\"error\")=\"error\",\"\",IF('Timeliness Quarterly'!H$63<'Timeliness Quarterly'!$D$61,'Timeliness Quarterly'!H$63,\"\"))","v":""},{"$f":"IF(IFERROR('Timeliness Quarterly'!$O$61,\"error\")=\"error\",\"\",IF('Timeliness Quarterly'!$O$61=0,\"\",'Timeliness Quarterly'!$O$61))","v":""},{"$f":"IF(IFERROR('Timeliness Quarterly'!$P$61,\"error\")=\"error\",\"\",IF('Timeliness Quarterly'!$P$61=0,\"\",'Timeliness Quarterly'!$P$61))","v":""}]
[null,{"$f":"'Timeliness Quarterly'!$I$46","v":"7/1/15 - 9/30/15"},{"$f":"'Timeliness Quarterly'!$D$61","v":0.8},{"$f":"'Timeliness Quarterly'!$E$61","v":3},{"$f":"IF(IFERROR('Timeliness Quarterly'!I$63,\"error\")=\"error\",\"\",IF('Timeliness Quarterly'!I$63<'Timeliness Quarterly'!$D$61,'Timeliness Quarterly'!I$63,\"\"))","v":""},{"$f":"IF(IFERROR('Timeliness Quarterly'!$Q$61,\"error\")=\"error\",\"\",IF('Timeliness Quarterly'!$Q$61=0,\"\",'Timeliness Quarterly'!$Q$61))","v":""},{"$f":"IF(IFERROR('Timeliness Quarterly'!$R$61,\"error\")=\"error\",\"\",IF('Timeliness Quarterly'!$R$61=0,\"\",'Timeliness Quarterly'!$R$61))","v":""}]
["County Civil",{"$f":"'Timeliness Quarterly'!$F$46","v":"10/1/14 - 12/31/14"},{"$f":"'Timeliness Quarterly'!$D$64","v":0.8},{"$f":"'Timeliness Quarterly'!$E$64","v":3},{"$f":"IF(IFERROR('Timeliness Quarterly'!F$66,\"error\")=\"error\",\"\",IF('Timeliness Quarterly'!F$66<'Timeliness Quarterly'!$D$64,'Timeliness Quarterly'!F$66,\"\"))","v":""},{"$f":"IF(IFERROR('Timeliness Quarterly'!$K$64,\"error\")=\"error\",\"\",IF('Timeliness Quarterly'!$K$64=0,\"\",'Timeliness Quarterly'!$K$64))","v":""},{"$f":"IF(IFERROR('Timeliness Quarterly'!$L$64,\"error\")=\"error\",\"\",IF('Timeliness Quarterly'!$L$64=0,\"\",'Timeliness Quarterly'!$L$64))","v":""}]
[null,{"$f":"'Timeliness Quarterly'!$G$46","v":"1/1/15 - 3/31/15"},{"$f":"'Timeliness Quarterly'!$D$64","v":0.8},{"$f":"'Timeliness Quarterly'!$E$64","v":3},{"$f":"IF(IFERROR('Timeliness Quarterly'!G$66,\"error\")=\"error\",\"\",IF('Timeliness Quarterly'!G$66<'Timeliness Quarterly'!$D$64,'Timeliness Quarterly'!G$66,\"\"))","v":""},{"$f":"IF(IFERROR('Timeliness Quarterly'!$M$64,\"error\")=\"error\",\"\",IF('Timeliness Quarterly'!$M$64=0,\"\",'Timeliness Quarterly'!$M$64))","v":""},{"$f":"IF(IFERROR('Timeliness Quarterly'!$N$64,\"error\")=\"error\",\"\",IF('Timeliness Quarterly'!$N$64=0,\"\",'Timeliness Quarterly'!$N$64))","v":""}]
[null,{"$f":"'Timeliness Quarterly'!$H$46","v":"4/1/15 - 6/30/15"},{"$f":"'Timeliness Quarterly'!$D$64","v":0.8},{"$f":"'Timeliness Quarterly'!$E$64","v":3},{"$f":"IF(IFERROR('Timeliness Quarterly'!H$66,\"error\")=\"error\",\"\",IF('Timeliness Quarterly'!H$66<'Timeliness Quarterly'!$D$64,'Timeliness Quarterly'!H$66,\"\"))","v":""},{"$f":"IF(IFERROR('Timeliness Quarterly'!$O$64,\"error\")=\"error\",\"\",IF('Timeliness Quarterly'!$O$64=0,\"\",'Timeliness Quarterly'!$O$64))","v":""},{"$f":"IF(IFERROR('Timeliness Quarterly'!$P$64,\"error\")=\"error\",\"\",IF('Timeliness Quarterly'!$P$64=0,\"\",'Timeliness Quarterly'!$P$64))","v":""}]
[null,{"$f":"'Timeliness Quarterly'!$I$46","v":"7/1/15 - 9/30/15"},{"$f":"'Timeliness Quarterly'!$D$64","v":0.8},{"$f":"'Timeliness Quarterly'!$E$64","v":3},{"$f":"IF(IFERROR('Timeliness Quarterly'!I$66,\"error\")=\"error\",\"\",IF('Timeliness Quarterly'!I$66<'Timeliness Quarterly'!$D$64,'Timeliness Quarterly'!I$66,\"\"))","v":""},{"$f":"IF(IFERROR('Timeliness Quarterly'!$Q$64,\"error\")=\"error\",\"\",IF('Timeliness Quarterly'!$Q$64=0,\"\",'Timeliness Quarterly'!$Q$64))","v":""},{"$f":"IF(IFERROR('Timeliness Quarterly'!$R$64,\"error\")=\"error\",\"\",IF('Timeliness Quarterly'!$R$64=0,\"\",'Timeliness Quarterly'!$R$64))","v":""}]
["Civil Traffic",{"$f":"'Timeliness Quarterly'!$F$46","v":"10/1/14 - 12/31/14"},{"$f":"'Timeliness Quarterly'!$D$67","v":0.8},{"$f":"'Timeliness Quarterly'!$E$67","v":4},{"$f":"IF(IFERROR('Timeliness Quarterly'!F$69,\"error\")=\"error\",\"\",IF('Timeliness Quarterly'!F$69<'Timeliness Quarterly'!$D$67,'Timeliness Quarterly'!F$69,\"\"))","v":""},{"$f":"IF(IFERROR('Timeliness Quarterly'!$K$67,\"error\")=\"error\",\"\",IF('Timeliness Quarterly'!$K$67=0,\"\",'Timeliness Quarterly'!$K$67))","v":""},{"$f":"IF(IFERROR('Timeliness Quarterly'!$L$67,\"error\")=\"error\",\"\",IF('Timeliness Quarterly'!$L$67=0,\"\",'Timeliness Quarterly'!$L$67))","v":""}]
[null,{"$f":"'Timeliness Quarterly'!$G$46","v":"1/1/15 - 3/31/15"},{"$f":"'Timeliness Quarterly'!$D$67","v":0.8},{"$f":"'Timeliness Quarterly'!$E$67","v":4},{"$f":"IF(IFERROR('Timeliness Quarterly'!G$69,\"error\")=\"error\",\"\",IF('Timeliness Quarterly'!G$69<'Timeliness Quarterly'!$D$67,'Timeliness Quarterly'!G$69,\"\"))","v":""},{"$f":"IF(IFERROR('Timeliness Quarterly'!$M$67,\"error\")=\"error\",\"\",IF('Timeliness Quarterly'!$M$67=0,\"\",'Timeliness Quarterly'!$M$67))","v":""},{"$f":"IF(IFERROR('Timeliness Quarterly'!$N$67,\"error\")=\"error\",\"\",IF('Timeliness Quarterly'!$N$67=0,\"\",'Timeliness Quarterly'!$N$67))","v":""}]
[null,{"$f":"'Timeliness Quarterly'!$H$46","v":"4/1/15 - 6/30/15"},{"$f":"'Timeliness Quarterly'!$D$67","v":0.8},{"$f":"'Timeliness Quarterly'!$E$67","v":4},{"$f":"IF(IFERROR('Timeliness Quarterly'!H$69,\"error\")=\"error\",\"\",IF('Timeliness Quarterly'!H$69<'Timeliness Quarterly'!$D$67,'Timeliness Quarterly'!H$69,\"\"))","v":""},{"$f":"IF(IFERROR('Timeliness Quarterly'!$O$67,\"error\")=\"error\",\"\",IF('Timeliness Quarterly'!$O$67=0,\"\",'Timeliness Quarterly'!$O$67))","v":""},{"$f":"IF(IFERROR('Timeliness Quarterly'!$P$67,\"error\")=\"error\",\"\",IF('Timeliness Quarterly'!$P$67=0,\"\",'Timeliness Quarterly'!$P$67))","v":""}]
[null,{"$f":"'Timeliness Quarterly'!$I$46","v":"7/1/15 - 9/30/15"},{"$f":"'Timeliness Quarterly'!$D$67","v":0.8},{"$f":"'Timeliness Quarterly'!$E$67","v":4},{"$f":"IF(IFERROR('Timeliness Quarterly'!I$69,\"error\")=\"error\",\"\",IF('Timeliness Quarterly'!I$69<'Timeliness Quarterly'!$D$67,'Timeliness Quarterly'!I$69,\"\"))","v":""},{"$f":"IF(IFERROR('Timeliness Quarterly'!$Q$67,\"error\")=\"error\",\"\",IF('Timeliness Quarterly'!$Q$67=0,\"\",'Timeliness Quarterly'!$Q$67))","v":""},{"$f":"IF(IFERROR('Timeliness Quarterly'!$R$67,\"error\")=\"error\",\"\",IF('Timeliness Quarterly'!$R$67=0,\"\",'Timeliness Quarterly'!$R$67))","v":""}]
["Probate",{"$f":"'Timeliness Quarterly'!$F$46","v":"10/1/14 - 12/31/14"},{"$f":"'Timeliness Quarterly'!$D$70","v":0.8},{"$f":"'Timeliness Quarterly'!$E$70","v":3},{"$f":"IF(IFERROR('Timeliness Quarterly'!F$72,\"error\")=\"error\",\"\",IF('Timeliness Quarterly'!F$72<'Timeliness Quarterly'!$D$70,'Timeliness Quarterly'!F$72,\"\"))","v":""},{"$f":"IF(IFERROR('Timeliness Quarterly'!$K$70,\"error\")=\"error\",\"\",IF('Timeliness Quarterly'!$K$70=0,\"\",'Timeliness Quarterly'!$K$70))","v":""},{"$f":"IF(IFERROR('Timeliness Quarterly'!$L$70,\"error\")=\"error\",\"\",IF('Timeliness Quarterly'!$L$70=0,\"\",'Timeliness Quarterly'!$L$70))","v":""}]
[null,{"$f":"'Timeliness Quarterly'!$G$46","v":"1/1/15 - 3/31/15"},{"$f":"'Timeliness Quarterly'!$D$70","v":0.8},{"$f":"'Timeliness Quarterly'!$E$70","v":3},{"$f":"IF(IFERROR('Timeliness Quarterly'!G$72,\"error\")=\"error\",\"\",IF('Timeliness Quarterly'!G$72<'Timeliness Quarterly'!$D$70,'Timeliness Quarterly'!G$72,\"\"))","v":""},{"$f":"IF(IFERROR('Timeliness Quarterly'!$M$70,\"error\")=\"error\",\"\",IF('Timeliness Quarterly'!$M$70=0,\"\",'Timeliness Quarterly'!$M$70))","v":""},{"$f":"IF(IFERROR('Timeliness Quarterly'!$N$70,\"error\")=\"error\",\"\",IF('Timeliness Quarterly'!$N$70=0,\"\",'Timeliness Quarterly'!$N$70))","v":""}]
[null,{"$f":"'Timeliness Quarterly'!$H$46","v":"4/1/15 - 6/30/15"},{"$f":"'Timeliness Quarterly'!$D$70","v":0.8},{"$f":"'Timeliness Quarterly'!$E$70","v":3},{"$f":"IF(IFERROR('Timeliness Quarterly'!H$72,\"error\")=\"error\",\"\",IF('Timeliness Quarterly'!H$72<'Timeliness Quarterly'!$D$70,'Timeliness Quarterly'!H$72,\"\"))","v":""},{"$f":"IF(IFERROR('Timeliness Quarterly'!$O$70,\"error\")=\"error\",\"\",IF('Timeliness Quarterly'!$O$70=0,\"\",'Timeliness Quarterly'!$O$70))","v":""},{"$f":"IF(IFERROR('Timeliness Quarterly'!$P$70,\"error\")=\"error\",\"\",IF('Timeliness Quarterly'!$P$70=0,\"\",'Timeliness Quarterly'!$P$70))","v":""}]
[null,{"$f":"'Timeliness Quarterly'!$I$46","v":"7/1/15 - 9/30/15"},{"$f":"'Timeliness Quarterly'!$D$70","v":0.8},{"$f":"'Timeliness Quarterly'!$E$70","v":3},{"$f":"IF(IFERROR('Timeliness Quarterly'!I$72,\"error\")=\"error\",\"\",IF('Timeliness Quarterly'!I$72<'Timeliness Quarterly'!$D$70,'Timeliness Quarterly'!I$72,\"\"))","v":""},{"$f":"IF(IFERROR('Timeliness Quarterly'!$Q$70,\"error\")=\"error\",\"\",IF('Timeliness Quarterly'!$Q$70=0,\"\",'Timeliness Quarterly'!$Q$70))","v":""},{"$f":"IF(IFERROR('Timeliness Quarterly'!$R$70,\"error\")=\"error\",\"\",IF('Timeliness Quarterly'!$R$70=0,\"\",'Timeliness Quarterly'!$R$70))","v":""}]
["Family",{"$f":"'Timeliness Quarterly'!$F$46","v":"10/1/14 - 12/31/14"},{"$f":"'Timeliness Quarterly'!$D$73","v":0.8},{"$f":"'Timeliness Quarterly'!$E$73","v":3},{"$f":"IF(IFERROR('Timeliness Quarterly'!F$75,\"error\")=\"error\",\"\",IF('Timeliness Quarterly'!F$75<'Timeliness Quarterly'!$D$73,'Timeliness Quarterly'!F$75,\"\"))","v":""},{"$f":"IF(IFERROR('Timeliness Quarterly'!$K$73,\"error\")=\"error\",\"\",IF('Timeliness Quarterly'!$K$73=0,\"\",'Timeliness Quarterly'!$K$73))","v":""},{"$f":"IF(IFERROR('Timeliness Quarterly'!$L$73,\"error\")=\"error\",\"\",IF('Timeliness Quarterly'!$L$73=0,\"\",'Timeliness Quarterly'!$L$73))","v":""}]
[null,{"$f":"'Timeliness Quarterly'!$G$46","v":"1/1/15 - 3/31/15"},{"$f":"'Timeliness Quarterly'!$D$73","v":0.8},{"$f":"'Timeliness Quarterly'!$E$73","v":3},{"$f":"IF(IFERROR('Timeliness Quarterly'!G$75,\"error\")=\"error\",\"\",IF('Timeliness Quarterly'!G$75<'Timeliness Quarterly'!$D$73,'Timeliness Quarterly'!G$75,\"\"))","v":""},{"$f":"IF(IFERROR('Timeliness Quarterly'!$M$73,\"error\")=\"error\",\"\",IF('Timeliness Quarterly'!$M$73=0,\"\",'Timeliness Quarterly'!$M$73))","v":""},{"$f":"IF(IFERROR('Timeliness Quarterly'!$N$73,\"error\")=\"error\",\"\",IF('Timeliness Quarterly'!$N$73=0,\"\",'Timeliness Quarterly'!$N$73))","v":""}]
[null,{"$f":"'Timeliness Quarterly'!$H$46","v":"4/1/15 - 6/30/15"},{"$f":"'Timeliness Quarterly'!$D$73","v":0.8},{"$f":"'Timeliness Quarterly'!$E$73","v":3},{"$f":"IF(IFERROR('Timeliness Quarterly'!H$75,\"error\")=\"error\",\"\",IF('Timeliness Quarterly'!H$75<'Timeliness Quarterly'!$D$73,'Timeliness Quarterly'!H$75,\"\"))","v":""},{"$f":"IF(IFERROR('Timeliness Quarterly'!$O$73,\"error\")=\"error\",\"\",IF('Timeliness Quarterly'!$O$73=0,\"\",'Timeliness Quarterly'!$O$73))","v":""},{"$f":"IF(IFERROR('Timeliness Quarterly'!$P$73,\"error\")=\"error\",\"\",IF('Timeliness Quarterly'!$P$73=0,\"\",'Timeliness Quarterly'!$P$73))","v":""}]
[null,{"$f":"'Timeliness Quarterly'!$I$46","v":"7/1/15 - 9/30/15"},{"$f":"'Timeliness Quarterly'!$D$73","v":0.8},{"$f":"'Timeliness Quarterly'!$E$73","v":3},{"$f":"IF(IFERROR('Timeliness Quarterly'!I$75,\"error\")=\"error\",\"\",IF('Timeliness Quarterly'!I$75<'Timeliness Quarterly'!$D$73,'Timeliness Quarterly'!I$75,\"\"))","v":""},{"$f":"IF(IFERROR('Timeliness Quarterly'!$Q$73,\"error\")=\"error\",\"\",IF('Timeliness Quarterly'!$Q$73=0,\"\",'Timeliness Quarterly'!$Q$73))","v":""},{"$f":"IF(IFERROR('Timeliness Quarterly'!$R$73,\"error\")=\"error\",\"\",IF('Timeliness Quarterly'!$R$73=0,\"\",'Timeliness Quarterly'!$R$73))","v":""}]
["Juvenile Dependency",{"$f":"'Timeliness Quarterly'!$F$46","v":"10/1/14 - 12/31/14"},{"$f":"'Timeliness Quarterly'!$D$76","v":0.8},{"$f":"'Timeliness Quarterly'!$E$76","v":3},{"$f":"IF(IFERROR('Timeliness Quarterly'!F$78,\"error\")=\"error\",\"\",IF('Timeliness Quarterly'!F$78<'Timeliness Quarterly'!$D$76,'Timeliness Quarterly'!F$78,\"\"))","v":""},{"$f":"IF(IFERROR('Timeliness Quarterly'!$K$76,\"error\")=\"error\",\"\",IF('Timeliness Quarterly'!$K$76=0,\"\",'Timeliness Quarterly'!$K$76))","v":""},{"$f":"IF(IFERROR('Timeliness Quarterly'!$L$76,\"error\")=\"error\",\"\",IF('Timeliness Quarterly'!$L$76=0,\"\",'Timeliness Quarterly'!$L$76))","v":""}]
[null,{"$f":"'Timeliness Quarterly'!$G$46","v":"1/1/15 - 3/31/15"},{"$f":"'Timeliness Quarterly'!$D$76","v":0.8},{"$f":"'Timeliness Quarterly'!$E$76","v":3},{"$f":"IF(IFERROR('Timeliness Quarterly'!G$78,\"error\")=\"error\",\"\",IF('Timeliness Quarterly'!G$78<'Timeliness Quarterly'!$D$76,'Timeliness Quarterly'!G$78,\"\"))","v":""},{"$f":"IF(IFERROR('Timeliness Quarterly'!$M$76,\"error\")=\"error\",\"\",IF('Timeliness Quarterly'!$M$76=0,\"\",'Timeliness Quarterly'!$M$76))","v":""},{"$f":"IF(IFERROR('Timeliness Quarterly'!$N$76,\"error\")=\"error\",\"\",IF('Timeliness Quarterly'!$N$76=0,\"\",'Timeliness Quarterly'!$N$76))","v":""}]
[null,{"$f":"'Timeliness Quarterly'!$H$46","v":"4/1/15 - 6/30/15"},{"$f":"'Timeliness Quarterly'!$D$76","v":0.8},{"$f":"'Timeliness Quarterly'!$E$76","v":3},{"$f":"IF(IFERROR('Timeliness Quarterly'!H$78,\"error\")=\"error\",\"\",IF('Timeliness Quarterly'!H$78<'Timeliness Quarterly'!$D$76,'Timeliness Quarterly'!H$78,\"\"))","v":""},{"$f":"IF(IFERROR('Timeliness Quarterly'!$O$76,\"error\")=\"error\",\"\",IF('Timeliness Quarterly'!$O$76=0,\"\",'Timeliness Quarterly'!$O$76))","v":""},{"$f":"IF(IFERROR('Timeliness Quarterly'!$P$76,\"error\")=\"error\",\"\",IF('Timeliness Quarterly'!$P$76=0,\"\",'Timeliness Quarterly'!$P$76))","v":""}]
[null,{"$f":"'Timeliness Quarterly'!$I$46","v":"7/1/15 - 9/30/15"},{"$f":"'Timeliness Quarterly'!$D$76","v":0.8},{"$f":"'Timeliness Quarterly'!$E$76","v":3},{"$f":"IF(IFERROR('Timeliness Quarterly'!I$78,\"error\")=\"error\",\"\",IF('Timeliness Quarterly'!I$78<'Timeliness Quarterly'!$D$76,'Timeliness Quarterly'!I$78,\"\"))","v":""},{"$f":"IF(IFERROR('Timeliness Quarterly'!$Q$76,\"error\")=\"error\",\"\",IF('Timeliness Quarterly'!$Q$76=0,\"\",'Timeliness Quarterly'!$Q$76))","v":""},{"$f":"IF(IFERROR('Timeliness Quarterly'!$R$76,\"error\")=\"error\",\"\",IF('Timeliness Quarterly'!$R$76=0,\"\",'Timeliness Quarterly'!$R$76))","v":""}]